Department family,Entity,Date,Expense Type,Expense area,Supplier,Transaction number,AP Amount (�)
Department of Health,NHS Sheffield CCG,31/08/2017,C&M-PMS Contract Value,PRC DELEGATED CO-COMMISSIONING,ABBEY LANE SURGERY,18351735,"22,033.14"
Department of Health,NHS Sheffield CCG,31/08/2017,C&M-PMS DES Minor Surgery,PRC DELEGATED CO-COMMISSIONING,ABBEY LANE SURGERY,18351735,"2,090.00"
Department of Health,NHS Sheffield CCG,31/08/2017,C&M-PMS Funding Differential Review,PRC DELEGATED CO-COMMISSIONING,ABBEY LANE SURGERY,18351735,"1,105.08"
Department of Health,NHS Sheffield CCG,31/08/2017,C&M-PMS Out of Hours Opt Outs,PRC DELEGATED CO-COMMISSIONING,ABBEY LANE SURGERY,18351735,1.93
Department of Health,NHS Sheffield CCG,31/08/2017,C&M-PMS PCO Other,PRC DELEGATED CO-COMMISSIONING,ABBEY LANE SURGERY,18351735,384.5
Department of Health,NHS Sheffield CCG,31/08/2017,C&M-PMS Prem Notional Rent,PRC DELEGATED CO-COMMISSIONING,ABBEY LANE SURGERY,18351735,"2,122.92"
Department of Health,NHS Sheffield CCG,31/08/2017,C&M-PMS Prem Rates,PRC DELEGATED CO-COMMISSIONING,ABBEY LANE SURGERY,18351735,700
Department of Health,NHS Sheffield CCG,31/08/2017,C&M-PMS QOF Aspiration,PRC DELEGATED CO-COMMISSIONING,ABBEY LANE SURGERY,18351735,"3,210.12"
Department of Health,NHS Sheffield CCG,31/08/2017,Cont Care-Physical Disab (65+),CHC ADULT FULLY FUNDED,ABBEYCARE NURSING,18606510,"48,177.00"
Department of Health,NHS Sheffield CCG,31/08/2017,Clinical&Medical-Voluntary Sector,COMMISSIONING - NON ACUTE,AGE UK SHEFFIELD,18606409,"30,000.00"
Department of Health,NHS Sheffield CCG,31/08/2017,Cont Care-Physical Disab (<65),CHC ADULT FULLY FUNDED,ALPINE HEALTH CARE,18340486,"30,580.22"
Department of Health,NHS Sheffield CCG,31/08/2017,Clinical&Medical-Commercial Sector,PATIENT TRANSPORT,ARRIVA TRANSPORT SOLUTIONS,18267467,"99,991.33"
Department of Health,NHS Sheffield CCG,31/08/2017,External Consultancy Fees,BEREAVEMENT SERVICE,ATTAIN HEALTH MANAGEMENT SERVICES LTD,18579773,"26,048.51"
Department of Health,NHS Sheffield CCG,31/08/2017,C&M-PMS Contract Value,PRC DELEGATED CO-COMMISSIONING,AVENUE MEDICAL CENTRE SHEFFIELD,18351733,"53,143.93"
Department of Health,NHS Sheffield CCG,31/08/2017,C&M-PMS DES Minor Surgery,PRC DELEGATED CO-COMMISSIONING,AVENUE MEDICAL CENTRE SHEFFIELD,18351733,960
Department of Health,NHS Sheffield CCG,31/08/2017,C&M-PMS Out of Hours Opt Outs,PRC DELEGATED CO-COMMISSIONING,AVENUE MEDICAL CENTRE SHEFFIELD,18351733,15.96
Department of Health,NHS Sheffield CCG,31/08/2017,C&M-PMS PCO Other,PRC DELEGATED CO-COMMISSIONING,AVENUE MEDICAL CENTRE SHEFFIELD,18351733,452.6
Department of Health,NHS Sheffield CCG,31/08/2017,C&M-PMS Prem Notional Rent,PRC DELEGATED CO-COMMISSIONING,AVENUE MEDICAL CENTRE SHEFFIELD,18351733,"5,546.67"
Department of Health,NHS Sheffield CCG,31/08/2017,C&M-PMS Prem Rates,PRC DELEGATED CO-COMMISSIONING,AVENUE MEDICAL CENTRE SHEFFIELD,18351733,875
Department of Health,NHS Sheffield CCG,31/08/2017,C&M-PMS QOF Aspiration,PRC DELEGATED CO-COMMISSIONING,AVENUE MEDICAL CENTRE SHEFFIELD,18351733,"6,441.78"
Department of Health,NHS Sheffield CCG,31/08/2017,Hcare Srv Rec Fdtn Trust-Contract Baseline,ACUTE COMMISSIONING,BARNSLEY HOSPITAL NHS FOUNDATION TRUST,18320810,"72,098.00"
Department of Health,NHS Sheffield CCG,31/08/2017,C&M-PMS Contract Value,PRC DELEGATED CO-COMMISSIONING,BARNSLEY ROAD SURGERY,18351737,"21,360.14"
Department of Health,NHS Sheffield CCG,31/08/2017,C&M-PMS Funding Differential Review,PRC DELEGATED CO-COMMISSIONING,BARNSLEY ROAD SURGERY,18351737,370.25
Department of Health,NHS Sheffield CCG,31/08/2017,C&M-PMS PCO Other,PRC DELEGATED CO-COMMISSIONING,BARNSLEY ROAD SURGERY,18351737,384.5
Department of Health,NHS Sheffield CCG,31/08/2017,C&M-PMS Prem Notional Rent,PRC DELEGATED CO-COMMISSIONING,BARNSLEY ROAD SURGERY,18351737,"2,652.17"
Department of Health,NHS Sheffield CCG,31/08/2017,C&M-PMS Prem Rates,PRC DELEGATED CO-COMMISSIONING,BARNSLEY ROAD SURGERY,18351737,629
Department of Health,NHS Sheffield CCG,31/08/2017,C&M-PMS QOF Aspiration,PRC DELEGATED CO-COMMISSIONING,BARNSLEY ROAD SURGERY,18351737,"2,500.90"
Department of Health,NHS Sheffield CCG,31/08/2017,C&M-GMS Cost of Drugs -Prescribing,LOCAL ENHANCED SERVICES,BASLOW ROAD & SHOREHAM STREET SURGERIES,18575259,"1,180.34"
Department of Health,NHS Sheffield CCG,31/08/2017,C&M-GMS DES Minor Surgery,PRC DELEGATED CO-COMMISSIONING,BASLOW ROAD & SHOREHAM STREET SURGERIES,18575259,"5,065.00"
Department of Health,NHS Sheffield CCG,31/08/2017,C&M-GMS Global Sum,PRC DELEGATED CO-COMMISSIONING,BASLOW ROAD & SHOREHAM STREET SURGERIES,18575259,"92,294.84"
Department of Health,NHS Sheffield CCG,31/08/2017,C&M-GMS MPIG Correction Factor,PRC DELEGATED CO-COMMISSIONING,BASLOW ROAD & SHOREHAM STREET SURGERIES,18575259,438.64
Department of Health,NHS Sheffield CCG,31/08/2017,C&M-GMS Prem Notional Rent,PRC DELEGATED CO-COMMISSIONING,BASLOW ROAD & SHOREHAM STREET SURGERIES,18575259,"8,511.25"
Department of Health,NHS Sheffield CCG,31/08/2017,C&M-GMS Prem Rates,PRC DELEGATED CO-COMMISSIONING,BASLOW ROAD & SHOREHAM STREET SURGERIES,18575259,"2,062.00"
Department of Health,NHS Sheffield CCG,31/08/2017,C&M-GMS Prof Fees Prescribing,PRC DELEGATED CO-COMMISSIONING,BASLOW ROAD & SHOREHAM STREET SURGERIES,18575259,138.83
Department of Health,NHS Sheffield CCG,31/08/2017,C&M-GMS QOF Aspiration,PRC DELEGATED CO-COMMISSIONING,BASLOW ROAD & SHOREHAM STREET SURGERIES,18575259,"10,284.12"
Department of Health,NHS Sheffield CCG,31/08/2017,Cont Care-Physical Disab (65+),CHC ADULT FULLY FUNDED,BC SHEFFIELD LTD,18267504,"35,793.31"
Department of Health,NHS Sheffield CCG,31/08/2017,Cont Care-Physical Disab (65+),CHC ADULT FULLY FUNDED,BC SHEFFIELD LTD,18519018,"35,793.31"
Department of Health,NHS Sheffield CCG,31/08/2017,Cont Care-Physical Disab (65+),CHC ADULT FULLY FUNDED,BC SHEFFIELD LTD,18606528,"34,638.69"
Department of Health,NHS Sheffield CCG,31/08/2017,C&M-PMS Contract Value,PRC DELEGATED CO-COMMISSIONING,BIRLEY HEALTH CENTRE,18351739,"60,823.52"
Department of Health,NHS Sheffield CCG,31/08/2017,C&M-PMS DES Learn Dsblty Hlth Chk,PRC DELEGATED CO-COMMISSIONING,BIRLEY HEALTH CENTRE,18351739,700
Department of Health,NHS Sheffield CCG,31/08/2017,C&M-PMS DES Minor Surgery,PRC DELEGATED CO-COMMISSIONING,BIRLEY HEALTH CENTRE,18351739,"6,960.00"
Department of Health,NHS Sheffield CCG,31/08/2017,C&M-PMS Funding Differential Review,PRC DELEGATED CO-COMMISSIONING,BIRLEY HEALTH CENTRE,18351739,"2,653.00"
Department of Health,NHS Sheffield CCG,31/08/2017,C&M-PMS PCO Other,PRC DELEGATED CO-COMMISSIONING,BIRLEY HEALTH CENTRE,18351739,452.6
Department of Health,NHS Sheffield CCG,31/08/2017,C&M-PMS Prem Notional Rent,PRC DELEGATED CO-COMMISSIONING,BIRLEY HEALTH CENTRE,18351739,"7,775.48"
Department of Health,NHS Sheffield CCG,31/08/2017,C&M-PMS QOF Aspiration,PRC DELEGATED CO-COMMISSIONING,BIRLEY HEALTH CENTRE,18351739,"8,879.62"
Department of Health,NHS Sheffield CCG,31/08/2017,Clinical&Medical-Independent Sector,ACUTE COMMISSIONING,BMI HEALTHCARE COLLECTIONS,18320807,"77,530.74"
Department of Health,NHS Sheffield CCG,31/08/2017,C&M-GMS Cost of Drugs -Prescribing,LOCAL ENHANCED SERVICES,BROOMHILL SURGERY,18558250,"1,894.92"
Department of Health,NHS Sheffield CCG,31/08/2017,C&M-GMS DES Minor Surgery,PRC DELEGATED CO-COMMISSIONING,BROOMHILL SURGERY,18558250,770
Department of Health,NHS Sheffield CCG,31/08/2017,C&M-GMS Global Sum,PRC DELEGATED CO-COMMISSIONING,BROOMHILL SURGERY,18558250,"60,368.19"
Department of Health,NHS Sheffield CCG,31/08/2017,C&M-GMS MPIG Correction Factor,PRC DELEGATED CO-COMMISSIONING,BROOMHILL SURGERY,18558250,753.01
Department of Health,NHS Sheffield CCG,31/08/2017,C&M-GMS PCO Locum Adop/Pat/Mat,PRC DELEGATED CO-COMMISSIONING,BROOMHILL SURGERY,18558250,"9,938.90"
Department of Health,NHS Sheffield CCG,31/08/2017,C&M-GMS Prem Cost Rent,PRC DELEGATED CO-COMMISSIONING,BROOMHILL SURGERY,18558250,"3,380.00"
Department of Health,NHS Sheffield CCG,31/08/2017,C&M-GMS Prem Notional Rent,PRC DELEGATED CO-COMMISSIONING,BROOMHILL SURGERY,18558250,"2,541.67"
Department of Health,NHS Sheffield CCG,31/08/2017,C&M-GMS Prem Rates,PRC DELEGATED CO-COMMISSIONING,BROOMHILL SURGERY,18558250,"1,794.00"
Department of Health,NHS Sheffield CCG,31/08/2017,C&M-GMS Prof Fees Prescribing,PRC DELEGATED CO-COMMISSIONING,BROOMHILL SURGERY,18558250,145.77
Department of Health,NHS Sheffield CCG,31/08/2017,C&M-GMS QOF Aspiration,PRC DELEGATED CO-COMMISSIONING,BROOMHILL SURGERY,18558250,"6,516.86"
Department of Health,NHS Sheffield CCG,31/08/2017,C&M-GMS IT Comm Servs -GP Practices,PRIMARY CARE IT,BT GLOBAL SERVICES,18453799,"22,331.04"
Department of Health,NHS Sheffield CCG,31/08/2017,Computer Software/License,ADMINISTRATION & BUSINESS SUPPORT,BT GLOBAL SERVICES,18453799,211.56
Department of Health,NHS Sheffield CCG,31/08/2017,Computer Software/License,CORPORATE COSTS & SERVICES,BT GLOBAL SERVICES,18453799,"2,327.16"
Department of Health,NHS Sheffield CCG,31/08/2017,Computer Software/License,OPERATIONS MANAGEMENT,BT GLOBAL SERVICES,18453799,211.56
Department of Health,NHS Sheffield CCG,31/08/2017,C&M-GMS Cost of Drugs -Prescribing,LOCAL ENHANCED SERVICES,BUCHANAN ROAD SURGERY,18558239,74.18
Department of Health,NHS Sheffield CCG,31/08/2017,C&M-GMS DES Minor Surgery,PRC DELEGATED CO-COMMISSIONING,BUCHANAN ROAD SURGERY,18558239,440
Department of Health,NHS Sheffield CCG,31/08/2017,C&M-GMS Global Sum,PRC DELEGATED CO-COMMISSIONING,BUCHANAN ROAD SURGERY,18558239,"34,944.36"
Department of Health,NHS Sheffield CCG,31/08/2017,C&M-GMS MPIG Correction Factor,PRC DELEGATED CO-COMMISSIONING,BUCHANAN ROAD SURGERY,18558239,"1,965.76"
Department of Health,NHS Sheffield CCG,31/08/2017,C&M-GMS Prem Notional Rent,PRC DELEGATED CO-COMMISSIONING,BUCHANAN ROAD SURGERY,18558239,"2,595.83"
Department of Health,NHS Sheffield CCG,31/08/2017,C&M-GMS Prem Rates,PRC DELEGATED CO-COMMISSIONING,BUCHANAN ROAD SURGERY,18558239,839
Department of Health,NHS Sheffield CCG,31/08/2017,C&M-GMS Prem Water Rates,PRC DELEGATED CO-COMMISSIONING,BUCHANAN ROAD SURGERY,18558239,386.38
Department of Health,NHS Sheffield CCG,31/08/2017,C&M-GMS Prof Fees Prescribing,PRC DELEGATED CO-COMMISSIONING,BUCHANAN ROAD SURGERY,18558239,27.77
Department of Health,NHS Sheffield CCG,31/08/2017,C&M-GMS QOF Aspiration,PRC DELEGATED CO-COMMISSIONING,BUCHANAN ROAD SURGERY,18558239,"4,538.47"
Department of Health,NHS Sheffield CCG,31/08/2017,C&M-PMS Contract Value,PRC DELEGATED CO-COMMISSIONING,BURNCROSS SURGERY,18351741,"117,589.75"
Department of Health,NHS Sheffield CCG,31/08/2017,C&M-PMS DES Minor Surgery,PRC DELEGATED CO-COMMISSIONING,BURNCROSS SURGERY,18351741,"2,340.00"
Department of Health,NHS Sheffield CCG,31/08/2017,C&M-PMS Funding Differential Review,PRC DELEGATED CO-COMMISSIONING,BURNCROSS SURGERY,18351741,"1,648.42"
Department of Health,NHS Sheffield CCG,31/08/2017,C&M-PMS Prem Notional Rent,PRC DELEGATED CO-COMMISSIONING,BURNCROSS SURGERY,18351741,"14,058.33"
Department of Health,NHS Sheffield CCG,31/08/2017,C&M-PMS QOF Aspiration,PRC DELEGATED CO-COMMISSIONING,BURNCROSS SURGERY,18351741,"14,930.79"
Department of Health,NHS Sheffield CCG,31/08/2017,C&M-PMS Contract Value,PRC DELEGATED CO-COMMISSIONING,BURNGREAVE SURGERY,18351743,"53,575.14"
Department of Health,NHS Sheffield CCG,31/08/2017,C&M-PMS DES Learn Dsblty Hlth Chk,PRC DELEGATED CO-COMMISSIONING,BURNGREAVE SURGERY,18351743,"1,400.00"
Department of Health,NHS Sheffield CCG,31/08/2017,C&M-PMS DES Minor Surgery,PRC DELEGATED CO-COMMISSIONING,BURNGREAVE SURGERY,18351743,"1,790.00"
Department of Health,NHS Sheffield CCG,31/08/2017,C&M-PMS Funding Differential Review,PRC DELEGATED CO-COMMISSIONING,BURNGREAVE SURGERY,18351743,"1,353.08"
Department of Health,NHS Sheffield CCG,31/08/2017,C&M-PMS Prem Notional Rent,PRC DELEGATED CO-COMMISSIONING,BURNGREAVE SURGERY,18351743,"7,229.16"
Department of Health,NHS Sheffield CCG,31/08/2017,C&M-PMS Prem Rates,PRC DELEGATED CO-COMMISSIONING,BURNGREAVE SURGERY,18351743,"1,877.00"
Department of Health,NHS Sheffield CCG,31/08/2017,C&M-PMS QOF Aspiration,PRC DELEGATED CO-COMMISSIONING,BURNGREAVE SURGERY,18351743,"5,148.30"
Department of Health,NHS Sheffield CCG,31/08/2017,C&M-GMS Cost of Drugs -Prescribing,LOCAL ENHANCED SERVICES,CARTERKNOWLE & DORE MEDICAL PRACTICE,18558264,"3,044.49"
Department of Health,NHS Sheffield CCG,31/08/2017,C&M-GMS DES Minor Surgery,PRC DELEGATED CO-COMMISSIONING,CARTERKNOWLE & DORE MEDICAL PRACTICE,18558264,"2,560.00"
Department of Health,NHS Sheffield CCG,31/08/2017,C&M-GMS Global Sum,PRC DELEGATED CO-COMMISSIONING,CARTERKNOWLE & DORE MEDICAL PRACTICE,18558264,"79,448.87"
Department of Health,NHS Sheffield CCG,31/08/2017,C&M-GMS MPIG Correction Factor,PRC DELEGATED CO-COMMISSIONING,CARTERKNOWLE & DORE MEDICAL PRACTICE,18558264,"2,241.88"
Department of Health,NHS Sheffield CCG,31/08/2017,C&M-GMS Prem Notional Rent,PRC DELEGATED CO-COMMISSIONING,CARTERKNOWLE & DORE MEDICAL PRACTICE,18558264,"7,538.34"
Department of Health,NHS Sheffield CCG,31/08/2017,C&M-GMS Prof Fees Prescribing,PRC DELEGATED CO-COMMISSIONING,CARTERKNOWLE & DORE MEDICAL PRACTICE,18558264,284.62
Department of Health,NHS Sheffield CCG,31/08/2017,C&M-GMS QOF Aspiration,PRC DELEGATED CO-COMMISSIONING,CARTERKNOWLE & DORE MEDICAL PRACTICE,18558264,"10,317.62"
Department of Health,NHS Sheffield CCG,31/08/2017,C&M-GMS Cost of Drugs -Prescribing,LOCAL ENHANCED SERVICES,CHARNOCK HEALTH PRIMARY CARE CENTRE,18558258,880.37
Department of Health,NHS Sheffield CCG,31/08/2017,C&M-GMS DES Minor Surgery,PRC DELEGATED CO-COMMISSIONING,CHARNOCK HEALTH PRIMARY CARE CENTRE,18558258,570
Department of Health,NHS Sheffield CCG,31/08/2017,C&M-GMS Global Sum,PRC DELEGATED CO-COMMISSIONING,CHARNOCK HEALTH PRIMARY CARE CENTRE,18558258,"38,204.75"
Department of Health,NHS Sheffield CCG,31/08/2017,C&M-GMS MPIG Correction Factor,PRC DELEGATED CO-COMMISSIONING,CHARNOCK HEALTH PRIMARY CARE CENTRE,18558258,619.87
Department of Health,NHS Sheffield CCG,31/08/2017,C&M-GMS PCO Other,PRC DELEGATED CO-COMMISSIONING,CHARNOCK HEALTH PRIMARY CARE CENTRE,18558258,452.6
Department of Health,NHS Sheffield CCG,31/08/2017,C&M-GMS Prem Notional Rent,PRC DELEGATED CO-COMMISSIONING,CHARNOCK HEALTH PRIMARY CARE CENTRE,18558258,305
Department of Health,NHS Sheffield CCG,31/08/2017,C&M-GMS Prem Rates,PRC DELEGATED CO-COMMISSIONING,CHARNOCK HEALTH PRIMARY CARE CENTRE,18558258,"1,111.00"
Department of Health,NHS Sheffield CCG,31/08/2017,C&M-GMS Prof Fees Prescribing,PRC DELEGATED CO-COMMISSIONING,CHARNOCK HEALTH PRIMARY CARE CENTRE,18558258,111.07
Department of Health,NHS Sheffield CCG,31/08/2017,C&M-GMS QOF Aspiration,PRC DELEGATED CO-COMMISSIONING,CHARNOCK HEALTH PRIMARY CARE CENTRE,18558258,"4,669.55"
Department of Health,NHS Sheffield CCG,31/08/2017,Hcare Srv Rec Fdtn Trust-Contract Baseline,ACUTE COMMISSIONING,CHESTERFIELD ROYAL HOSPITAL NHS FOUNDATION TRUST,18380714,"273,318.00"
Department of Health,NHS Sheffield CCG,31/08/2017,Hcare Srv Rec Fdtn Trust-Contract Baseline,ACUTE COMMISSIONING,CHESTERFIELD ROYAL HOSPITAL NHS FOUNDATION TRUST,18430047,"-45,380.00"
Department of Health,NHS Sheffield CCG,31/08/2017,Hcare Srv Rec Fdtn Trust-Contract Baseline,ACUTE COMMISSIONING,CHESTERFIELD ROYAL HOSPITAL NHS FOUNDATION TRUST,18579809,"273,318.00"
Department of Health,NHS Sheffield CCG,31/08/2017,Clinical&Medical-Independent Sector,ACUTE COMMISSIONING,CLAREMONT HOSPITAL,18340307,"78,290.00"
Department of Health,NHS Sheffield CCG,31/08/2017,Cont Care-Funded Nursing Care Allow,FUNDED NURSING CARE,COUNTRY COURT CARE LTD,18454270,"32,272.55"
Department of Health,NHS Sheffield CCG,31/08/2017,C&M-GMS Cost of Drugs -Prescribing,LOCAL ENHANCED SERVICES,CROOKES PRACTICE,18558273,730.06
Department of Health,NHS Sheffield CCG,31/08/2017,C&M-GMS DES Learn Dsblty Hlth Chk,PRC DELEGATED CO-COMMISSIONING,CROOKES PRACTICE,18558273,700
Department of Health,NHS Sheffield CCG,31/08/2017,C&M-GMS DES Minor Surgery,PRC DELEGATED CO-COMMISSIONING,CROOKES PRACTICE,18558273,165
Department of Health,NHS Sheffield CCG,31/08/2017,C&M-GMS Global Sum,PRC DELEGATED CO-COMMISSIONING,CROOKES PRACTICE,18558273,"46,674.80"
Department of Health,NHS Sheffield CCG,31/08/2017,C&M-GMS MPIG Correction Factor,PRC DELEGATED CO-COMMISSIONING,CROOKES PRACTICE,18558273,"2,318.88"
Department of Health,NHS Sheffield CCG,31/08/2017,C&M-GMS PCO Other,PRC DELEGATED CO-COMMISSIONING,CROOKES PRACTICE,18558273,452.6
Department of Health,NHS Sheffield CCG,31/08/2017,C&M-GMS Prem Notional Rent,PRC DELEGATED CO-COMMISSIONING,CROOKES PRACTICE,18558273,"3,752.42"
Department of Health,NHS Sheffield CCG,31/08/2017,C&M-GMS Prem Rates,PRC DELEGATED CO-COMMISSIONING,CROOKES PRACTICE,18558273,"1,444.00"
Department of Health,NHS Sheffield CCG,31/08/2017,C&M-GMS Prof Fees Prescribing,PRC DELEGATED CO-COMMISSIONING,CROOKES PRACTICE,18558273,118.02
Department of Health,NHS Sheffield CCG,31/08/2017,C&M-GMS QOF Aspiration,PRC DELEGATED CO-COMMISSIONING,CROOKES PRACTICE,18558273,"4,702.76"
Department of Health,NHS Sheffield CCG,31/08/2017,C&M-PMS Contract Value,PRC DELEGATED CO-COMMISSIONING,DEEPCAR MEDICAL CENTRE,18351747,"38,614.91"
Department of Health,NHS Sheffield CCG,31/08/2017,C&M-PMS DES Minor Surgery,PRC DELEGATED CO-COMMISSIONING,DEEPCAR MEDICAL CENTRE,18351747,40
Department of Health,NHS Sheffield CCG,31/08/2017,C&M-PMS Funding Differential Review,PRC DELEGATED CO-COMMISSIONING,DEEPCAR MEDICAL CENTRE,18351747,306.08
Department of Health,NHS Sheffield CCG,31/08/2017,C&M-PMS Prem Healthcentre Rent,PRC DELEGATED CO-COMMISSIONING,DEEPCAR MEDICAL CENTRE,18351747,"26,323.25"
Department of Health,NHS Sheffield CCG,31/08/2017,C&M-PMS QOF Aspiration,PRC DELEGATED CO-COMMISSIONING,DEEPCAR MEDICAL CENTRE,18351747,"4,452.12"
Department of Health,NHS Sheffield CCG,31/08/2017,Other professional fees,BEREAVEMENT SERVICE,DELOITTE MCS LTD,18380341,"89,640.00"
Department of Health,NHS Sheffield CCG,31/08/2017,C&M-GMS Cost of Drugs -Prescribing,LOCAL ENHANCED SERVICES,DEVONSHIRE GREEN MEDICAL CENTRE,18558278,"1,508.61"
Department of Health,NHS Sheffield CCG,31/08/2017,C&M-GMS DES Minor Surgery,PRC DELEGATED CO-COMMISSIONING,DEVONSHIRE GREEN MEDICAL CENTRE,18558278,705
Department of Health,NHS Sheffield CCG,31/08/2017,C&M-GMS Global Sum,PRC DELEGATED CO-COMMISSIONING,DEVONSHIRE GREEN MEDICAL CENTRE,18558278,"44,085.33"
Department of Health,NHS Sheffield CCG,31/08/2017,C&M-GMS MPIG Correction Factor,PRC DELEGATED CO-COMMISSIONING,DEVONSHIRE GREEN MEDICAL CENTRE,18558278,"4,846.80"
Department of Health,NHS Sheffield CCG,31/08/2017,C&M-GMS Prem Notional Rent,PRC DELEGATED CO-COMMISSIONING,DEVONSHIRE GREEN MEDICAL CENTRE,18558278,"5,987.50"
Department of Health,NHS Sheffield CCG,31/08/2017,C&M-GMS Prof Fees Prescribing,PRC DELEGATED CO-COMMISSIONING,DEVONSHIRE GREEN MEDICAL CENTRE,18558278,205.94
Department of Health,NHS Sheffield CCG,31/08/2017,C&M-GMS QOF Aspiration,PRC DELEGATED CO-COMMISSIONING,DEVONSHIRE GREEN MEDICAL CENTRE,18558278,"5,205.83"
Department of Health,NHS Sheffield CCG,31/08/2017,Hcare Srv Rec Fdtn Trust-Contract Baseline,ACUTE COMMISSIONING,DONCASTER AND BASSETLAW HOSPITALS NHS FOUNDATION TRUST,18361347,"32,938.00"
Department of Health,NHS Sheffield CCG,31/08/2017,Hcare Srv Rec Fdtn Trust-Contract Baseline,ACUTE COMMISSIONING,DONCASTER AND BASSETLAW HOSPITALS NHS FOUNDATION TRUST,18361497,"34,715.00"
Department of Health,NHS Sheffield CCG,31/08/2017,C&M-PMS Contract Value,PRC DELEGATED CO-COMMISSIONING,DOVERCOURT SURGERY,18351749,"67,476.52"
Department of Health,NHS Sheffield CCG,31/08/2017,C&M-PMS DES Learn Dsblty Hlth Chk,PRC DELEGATED CO-COMMISSIONING,DOVERCOURT SURGERY,18351749,980
Department of Health,NHS Sheffield CCG,31/08/2017,C&M-PMS DES Minor Surgery,PRC DELEGATED CO-COMMISSIONING,DOVERCOURT SURGERY,18351749,"1,840.00"
Department of Health,NHS Sheffield CCG,31/08/2017,C&M-PMS Funding Differential Review,PRC DELEGATED CO-COMMISSIONING,DOVERCOURT SURGERY,18351749,"3,616.08"
Department of Health,NHS Sheffield CCG,31/08/2017,C&M-PMS Prem Actual Rent,PRC DELEGATED CO-COMMISSIONING,DOVERCOURT SURGERY,18351749,"12,400.00"
Department of Health,NHS Sheffield CCG,31/08/2017,C&M-PMS Prem Notional Rent,PRC DELEGATED CO-COMMISSIONING,DOVERCOURT SURGERY,18351749,"1,708.34"
Department of Health,NHS Sheffield CCG,31/08/2017,C&M-PMS QOF Aspiration,PRC DELEGATED CO-COMMISSIONING,DOVERCOURT SURGERY,18351749,"7,505.03"
Department of Health,NHS Sheffield CCG,31/08/2017,C&M-PMS Contract Value,PRC DELEGATED CO-COMMISSIONING,DR MEHROTRA & PARTNER,18351751,"26,881.77"
Department of Health,NHS Sheffield CCG,31/08/2017,C&M-PMS Funding Differential Review,PRC DELEGATED CO-COMMISSIONING,DR MEHROTRA & PARTNER,18351751,885.92
Department of Health,NHS Sheffield CCG,31/08/2017,C&M-PMS PCO Other,PRC DELEGATED CO-COMMISSIONING,DR MEHROTRA & PARTNER,18351751,384.5
Department of Health,NHS Sheffield CCG,31/08/2017,C&M-PMS Prem Notional Rent,PRC DELEGATED CO-COMMISSIONING,DR MEHROTRA & PARTNER,18351751,"5,157.33"
Department of Health,NHS Sheffield CCG,31/08/2017,C&M-PMS Prem Rates,PRC DELEGATED CO-COMMISSIONING,DR MEHROTRA & PARTNER,18351751,"1,322.00"
Department of Health,NHS Sheffield CCG,31/08/2017,C&M-PMS Prem Water Rates,PRC DELEGATED CO-COMMISSIONING,DR MEHROTRA & PARTNER,18351751,32.22
Department of Health,NHS Sheffield CCG,31/08/2017,C&M-PMS QOF Aspiration,PRC DELEGATED CO-COMMISSIONING,DR MEHROTRA & PARTNER,18351751,"3,389.93"
Department of Health,NHS Sheffield CCG,31/08/2017,C&M-PMS Contract Value,PRC DELEGATED CO-COMMISSIONING,DR MILNER & PARTNERS,18351753,"71,337.13"
Department of Health,NHS Sheffield CCG,31/08/2017,C&M-PMS DES Minor Surgery,PRC DELEGATED CO-COMMISSIONING,DR MILNER & PARTNERS,18351753,"1,200.00"
Department of Health,NHS Sheffield CCG,31/08/2017,C&M-PMS DES UNPLANNED ADMISSIONS,PRC DELEGATED CO-COMMISSIONING,DR MILNER & PARTNERS,18351753,"8,074.22"
Department of Health,NHS Sheffield CCG,31/08/2017,C&M-PMS Funding Differential Review,PRC DELEGATED CO-COMMISSIONING,DR MILNER & PARTNERS,18351753,"4,581.42"
Department of Health,NHS Sheffield CCG,31/08/2017,C&M-PMS Prem Actual Rent,PRC DELEGATED CO-COMMISSIONING,DR MILNER & PARTNERS,18351753,"11,382.00"
Department of Health,NHS Sheffield CCG,31/08/2017,C&M-PMS Prem Notional Rent,PRC DELEGATED CO-COMMISSIONING,DR MILNER & PARTNERS,18351753,"5,552.42"
Department of Health,NHS Sheffield CCG,31/08/2017,C&M-PMS Prem Rates,PRC DELEGATED CO-COMMISSIONING,DR MILNER & PARTNERS,18351753,"1,921.00"
Department of Health,NHS Sheffield CCG,31/08/2017,C&M-PMS QOF Aspiration,PRC DELEGATED CO-COMMISSIONING,DR MILNER & PARTNERS,18351753,"7,385.62"
Department of Health,NHS Sheffield CCG,31/08/2017,C&M-GMS Cost of Drugs -Prescribing,LOCAL ENHANCED SERVICES,DUKE MEDICAL CENTRE,18558292,"1,058.57"
Department of Health,NHS Sheffield CCG,31/08/2017,C&M-GMS DES Learn Dsblty Hlth Chk,PRC DELEGATED CO-COMMISSIONING,DUKE MEDICAL CENTRE,18558292,812
Department of Health,NHS Sheffield CCG,31/08/2017,C&M-GMS DES Minor Surgery,PRC DELEGATED CO-COMMISSIONING,DUKE MEDICAL CENTRE,18558292,"1,200.00"
Department of Health,NHS Sheffield CCG,31/08/2017,C&M-GMS Global Sum,PRC DELEGATED CO-COMMISSIONING,DUKE MEDICAL CENTRE,18558292,"53,346.41"
Department of Health,NHS Sheffield CCG,31/08/2017,C&M-GMS MPIG Correction Factor,PRC DELEGATED CO-COMMISSIONING,DUKE MEDICAL CENTRE,18558292,918.76
Department of Health,NHS Sheffield CCG,31/08/2017,C&M-GMS Prem Notional Rent,PRC DELEGATED CO-COMMISSIONING,DUKE MEDICAL CENTRE,18558292,"5,721.67"
Department of Health,NHS Sheffield CCG,31/08/2017,C&M-GMS Prof Fees Prescribing,PRC DELEGATED CO-COMMISSIONING,DUKE MEDICAL CENTRE,18558292,231.4
Department of Health,NHS Sheffield CCG,31/08/2017,C&M-GMS QOF Aspiration,PRC DELEGATED CO-COMMISSIONING,DUKE MEDICAL CENTRE,18558292,"5,346.37"
Department of Health,NHS Sheffield CCG,31/08/2017,C&M-PMS Contract Value,PRC DELEGATED CO-COMMISSIONING,DUNNINC ROAD SURGERY,18375252,"23,278.26"
Department of Health,NHS Sheffield CCG,31/08/2017,C&M-PMS DES Learn Dsblty Hlth Chk,PRC DELEGATED CO-COMMISSIONING,DUNNINC ROAD SURGERY,18375252,580
Department of Health,NHS Sheffield CCG,31/08/2017,C&M-PMS DES Minor Surgery,PRC DELEGATED CO-COMMISSIONING,DUNNINC ROAD SURGERY,18375252,"1,595.00"
Department of Health,NHS Sheffield CCG,31/08/2017,C&M-PMS Funding Differential Review,PRC DELEGATED CO-COMMISSIONING,DUNNINC ROAD SURGERY,18375252,"1,218.67"
Department of Health,NHS Sheffield CCG,31/08/2017,C&M-PMS Prem Actual Rent,PRC DELEGATED CO-COMMISSIONING,DUNNINC ROAD SURGERY,18375252,54.38
Department of Health,NHS Sheffield CCG,31/08/2017,C&M-PMS Prem Notional Rent,PRC DELEGATED CO-COMMISSIONING,DUNNINC ROAD SURGERY,18375252,"1,664.59"
Department of Health,NHS Sheffield CCG,31/08/2017,C&M-PMS QOF Aspiration,PRC DELEGATED CO-COMMISSIONING,DUNNINC ROAD SURGERY,18375252,"2,548.20"
Department of Health,NHS Sheffield CCG,31/08/2017,C&M-PMS Contract Value,PRC DELEGATED CO-COMMISSIONING,DYKES HALL MEDICAL CENTRE,18351756,"69,905.61"
Department of Health,NHS Sheffield CCG,31/08/2017,C&M-PMS DES Minor Surgery,PRC DELEGATED CO-COMMISSIONING,DYKES HALL MEDICAL CENTRE,18351756,600
Department of Health,NHS Sheffield CCG,31/08/2017,C&M-PMS Funding Differential Review,PRC DELEGATED CO-COMMISSIONING,DYKES HALL MEDICAL CENTRE,18351756,199.75
Department of Health,NHS Sheffield CCG,31/08/2017,C&M-PMS PCO Locum Adop/Pat/Mat,PRC DELEGATED CO-COMMISSIONING,DYKES HALL MEDICAL CENTRE,18351756,"3,744.13"
Department of Health,NHS Sheffield CCG,31/08/2017,C&M-PMS Prem Notional Rent,PRC DELEGATED CO-COMMISSIONING,DYKES HALL MEDICAL CENTRE,18351756,"5,300.83"
Department of Health,NHS Sheffield CCG,31/08/2017,C&M-PMS Prem Rates,PRC DELEGATED CO-COMMISSIONING,DYKES HALL MEDICAL CENTRE,18351756,"8,760.40"
Department of Health,NHS Sheffield CCG,31/08/2017,C&M-PMS QOF Aspiration,PRC DELEGATED CO-COMMISSIONING,DYKES HALL MEDICAL CENTRE,18351756,"8,863.43"
Department of Health,NHS Sheffield CCG,31/08/2017,C&M-PMS Contract Value,PRC DELEGATED CO-COMMISSIONING,EAST BANK MEDICAL CENTRE,18351758,"44,692.31"
Department of Health,NHS Sheffield CCG,31/08/2017,C&M-PMS DES Minor Surgery,PRC DELEGATED CO-COMMISSIONING,EAST BANK MEDICAL CENTRE,18351758,930
Department of Health,NHS Sheffield CCG,31/08/2017,C&M-PMS Funding Differential Review,PRC DELEGATED CO-COMMISSIONING,EAST BANK MEDICAL CENTRE,18351758,"1,588.17"
Department of Health,NHS Sheffield CCG,31/08/2017,C&M-PMS Prem Notional Rent,PRC DELEGATED CO-COMMISSIONING,EAST BANK MEDICAL CENTRE,18351758,"10,466.67"
Department of Health,NHS Sheffield CCG,31/08/2017,C&M-PMS Prem Rates,PRC DELEGATED CO-COMMISSIONING,EAST BANK MEDICAL CENTRE,18351758,"4,981.00"
Department of Health,NHS Sheffield CCG,31/08/2017,C&M-PMS QOF Aspiration,PRC DELEGATED CO-COMMISSIONING,EAST BANK MEDICAL CENTRE,18351758,"5,086.87"
Department of Health,NHS Sheffield CCG,31/08/2017,C&M-GMS Cost of Drugs -Prescribing,LOCAL ENHANCED SERVICES,ECCLESFIELD GROUP PRACTICE,18558283,"3,484.18"
Department of Health,NHS Sheffield CCG,31/08/2017,C&M-GMS DES Minor Surgery,PRC DELEGATED CO-COMMISSIONING,ECCLESFIELD GROUP PRACTICE,18558283,"1,040.00"
Department of Health,NHS Sheffield CCG,31/08/2017,C&M-GMS Global Sum,PRC DELEGATED CO-COMMISSIONING,ECCLESFIELD GROUP PRACTICE,18558283,"62,770.47"
Department of Health,NHS Sheffield CCG,31/08/2017,C&M-GMS PCO Other,PRC DELEGATED CO-COMMISSIONING,ECCLESFIELD GROUP PRACTICE,18558283,452.6
Department of Health,NHS Sheffield CCG,31/08/2017,C&M-GMS Prem Notional Rent,PRC DELEGATED CO-COMMISSIONING,ECCLESFIELD GROUP PRACTICE,18558283,"6,805.42"
Department of Health,NHS Sheffield CCG,31/08/2017,C&M-GMS Prem Rates,PRC DELEGATED CO-COMMISSIONING,ECCLESFIELD GROUP PRACTICE,18558283,"2,055.00"
Department of Health,NHS Sheffield CCG,31/08/2017,C&M-GMS Prof Fees Prescribing,PRC DELEGATED CO-COMMISSIONING,ECCLESFIELD GROUP PRACTICE,18558283,236.03
Department of Health,NHS Sheffield CCG,31/08/2017,C&M-GMS QOF Aspiration,PRC DELEGATED CO-COMMISSIONING,ECCLESFIELD GROUP PRACTICE,18558283,"10,399.72"
Department of Health,NHS Sheffield CCG,31/08/2017,C&M-GMS Cost of Drugs -Prescribing,LOCAL ENHANCED SERVICES,ELM LANE SURGERY,18558287,"2,305.40"
Department of Health,NHS Sheffield CCG,31/08/2017,C&M-GMS DES Minor Surgery,PRC DELEGATED CO-COMMISSIONING,ELM LANE SURGERY,18558287,40
Department of Health,NHS Sheffield CCG,31/08/2017,C&M-GMS Global Sum,PRC DELEGATED CO-COMMISSIONING,ELM LANE SURGERY,18558287,"37,805.40"
Department of Health,NHS Sheffield CCG,31/08/2017,C&M-GMS MPIG Correction Factor,PRC DELEGATED CO-COMMISSIONING,ELM LANE SURGERY,18558287,"1,257.79"
Department of Health,NHS Sheffield CCG,31/08/2017,C&M-GMS Prem Notional Rent,PRC DELEGATED CO-COMMISSIONING,ELM LANE SURGERY,18558287,"5,168.50"
Department of Health,NHS Sheffield CCG,31/08/2017,C&M-GMS Prem Rates,PRC DELEGATED CO-COMMISSIONING,ELM LANE SURGERY,18558287,"1,268.00"
Department of Health,NHS Sheffield CCG,31/08/2017,C&M-GMS Prem Water Rates,PRC DELEGATED CO-COMMISSIONING,ELM LANE SURGERY,18558287,74.05
Department of Health,NHS Sheffield CCG,31/08/2017,C&M-GMS Prof Fees Prescribing,PRC DELEGATED CO-COMMISSIONING,ELM LANE SURGERY,18558287,159.67
Department of Health,NHS Sheffield CCG,31/08/2017,C&M-GMS QOF Aspiration,PRC DELEGATED CO-COMMISSIONING,ELM LANE SURGERY,18558287,"4,880.72"
Department of Health,NHS Sheffield CCG,31/08/2017,Cont Care-Physical Disab (<65),CHC ADULT FULLY FUNDED,FAIRWINDS HEALTH CARE LTD,18340564,"52,953.77"
Department of Health,NHS Sheffield CCG,31/08/2017,C&M-PMS Contract Value,PRC DELEGATED CO-COMMISSIONING,FALKLAND HOUSE,18351762,"26,517.98"
Department of Health,NHS Sheffield CCG,31/08/2017,C&M-PMS DES Minor Surgery,PRC DELEGATED CO-COMMISSIONING,FALKLAND HOUSE,18351762,560
Department of Health,NHS Sheffield CCG,31/08/2017,C&M-PMS Funding Differential Review,PRC DELEGATED CO-COMMISSIONING,FALKLAND HOUSE,18351762,"1,255.92"
Department of Health,NHS Sheffield CCG,31/08/2017,C&M-PMS Out of Hours Opt Outs,PRC DELEGATED CO-COMMISSIONING,FALKLAND HOUSE,18351762,74.11
Department of Health,NHS Sheffield CCG,31/08/2017,C&M-PMS PCO Other,PRC DELEGATED CO-COMMISSIONING,FALKLAND HOUSE,18351762,384.5
Department of Health,NHS Sheffield CCG,31/08/2017,C&M-PMS Prem Notional Rent,PRC DELEGATED CO-COMMISSIONING,FALKLAND HOUSE,18351762,"1,802.08"
Department of Health,NHS Sheffield CCG,31/08/2017,C&M-PMS Prem Rates,PRC DELEGATED CO-COMMISSIONING,FALKLAND HOUSE,18351762,713
Department of Health,NHS Sheffield CCG,31/08/2017,C&M-PMS QOF Aspiration,PRC DELEGATED CO-COMMISSIONING,FALKLAND HOUSE,18351762,"3,036.47"
Department of Health,NHS Sheffield CCG,31/08/2017,C&M-GMS Cost of Drugs -Prescribing,LOCAL ENHANCED SERVICES,FAR LANE MEDICAL CENTRE,18558306,631.12
Department of Health,NHS Sheffield CCG,31/08/2017,C&M-GMS DES Minor Surgery,PRC DELEGATED CO-COMMISSIONING,FAR LANE MEDICAL CENTRE,18558306,"2,995.00"
Department of Health,NHS Sheffield CCG,31/08/2017,C&M-GMS Global Sum,PRC DELEGATED CO-COMMISSIONING,FAR LANE MEDICAL CENTRE,18558306,"53,465.05"
Department of Health,NHS Sheffield CCG,31/08/2017,C&M-GMS PCO Other,PRC DELEGATED CO-COMMISSIONING,FAR LANE MEDICAL CENTRE,18558306,452.6
Department of Health,NHS Sheffield CCG,31/08/2017,C&M-GMS Prem Notional Rent,PRC DELEGATED CO-COMMISSIONING,FAR LANE MEDICAL CENTRE,18558306,"3,462.50"
Department of Health,NHS Sheffield CCG,31/08/2017,C&M-GMS Prem Rates,PRC DELEGATED CO-COMMISSIONING,FAR LANE MEDICAL CENTRE,18558306,"1,053.00"
Department of Health,NHS Sheffield CCG,31/08/2017,C&M-GMS Prem Water Rates,PRC DELEGATED CO-COMMISSIONING,FAR LANE MEDICAL CENTRE,18558306,156.63
Department of Health,NHS Sheffield CCG,31/08/2017,C&M-GMS Prof Fees Prescribing,PRC DELEGATED CO-COMMISSIONING,FAR LANE MEDICAL CENTRE,18558306,168.92
Department of Health,NHS Sheffield CCG,31/08/2017,C&M-GMS QOF Aspiration,PRC DELEGATED CO-COMMISSIONING,FAR LANE MEDICAL CENTRE,18558306,"6,224.50"
Department of Health,NHS Sheffield CCG,31/08/2017,C&M-PMS Contract Value,PRC DELEGATED CO-COMMISSIONING,FIRTH PARK SURGERY,18351760,"70,389.53"
Department of Health,NHS Sheffield CCG,31/08/2017,C&M-PMS DES Learn Dsblty Hlth Chk,PRC DELEGATED CO-COMMISSIONING,FIRTH PARK SURGERY,18351760,"1,540.00"
Department of Health,NHS Sheffield CCG,31/08/2017,C&M-PMS DES Minor Surgery,PRC DELEGATED CO-COMMISSIONING,FIRTH PARK SURGERY,18351760,"1,655.00"
Department of Health,NHS Sheffield CCG,31/08/2017,C&M-PMS PCO Locum Adop/Pat/Mat,PRC DELEGATED CO-COMMISSIONING,FIRTH PARK SURGERY,18351760,"7,429.26"
Department of Health,NHS Sheffield CCG,31/08/2017,C&M-PMS Prem Notional Rent,PRC DELEGATED CO-COMMISSIONING,FIRTH PARK SURGERY,18351760,"4,500.00"
Department of Health,NHS Sheffield CCG,31/08/2017,C&M-PMS Prem Rates,PRC DELEGATED CO-COMMISSIONING,FIRTH PARK SURGERY,18351760,"1,291.00"
Department of Health,NHS Sheffield CCG,31/08/2017,C&M-PMS QOF Aspiration,PRC DELEGATED CO-COMMISSIONING,FIRTH PARK SURGERY,18351760,"8,194.20"
Department of Health,NHS Sheffield CCG,31/08/2017,C&M-GMS Cost of Drugs -Prescribing,LOCAL ENHANCED SERVICES,FLOWERS HEALTH CENTRE,18558385,466.08
Department of Health,NHS Sheffield CCG,31/08/2017,C&M-GMS DES Minor Surgery,PRC DELEGATED CO-COMMISSIONING,FLOWERS HEALTH CENTRE,18558385,760
Department of Health,NHS Sheffield CCG,31/08/2017,C&M-GMS Global Sum,PRC DELEGATED CO-COMMISSIONING,FLOWERS HEALTH CENTRE,18558385,"33,150.39"
Department of Health,NHS Sheffield CCG,31/08/2017,C&M-GMS MPIG Correction Factor,PRC DELEGATED CO-COMMISSIONING,FLOWERS HEALTH CENTRE,18558385,"2,214.46"
Department of Health,NHS Sheffield CCG,31/08/2017,C&M-GMS Prem Healthcentre Rent,PRC DELEGATED CO-COMMISSIONING,FLOWERS HEALTH CENTRE,18558385,"32,996.55"
Department of Health,NHS Sheffield CCG,31/08/2017,C&M-GMS Prof Fees Prescribing,PRC DELEGATED CO-COMMISSIONING,FLOWERS HEALTH CENTRE,18558385,120.33
Department of Health,NHS Sheffield CCG,31/08/2017,C&M-GMS QOF Aspiration,PRC DELEGATED CO-COMMISSIONING,FLOWERS HEALTH CENTRE,18558385,"4,334.56"
Department of Health,NHS Sheffield CCG,31/08/2017,C&M-PMS Contract Value,PRC DELEGATED CO-COMMISSIONING,FOXHILL MEDICAL CENTRE SHEFFIELD,18351814,"50,266.22"
Department of Health,NHS Sheffield CCG,31/08/2017,C&M-PMS DES Minor Surgery,PRC DELEGATED CO-COMMISSIONING,FOXHILL MEDICAL CENTRE SHEFFIELD,18351814,820
Department of Health,NHS Sheffield CCG,31/08/2017,C&M-PMS Funding Differential Review,PRC DELEGATED CO-COMMISSIONING,FOXHILL MEDICAL CENTRE SHEFFIELD,18351814,"1,451.25"
Department of Health,NHS Sheffield CCG,31/08/2017,C&M-PMS PCO Other,PRC DELEGATED CO-COMMISSIONING,FOXHILL MEDICAL CENTRE SHEFFIELD,18351814,452.6
Department of Health,NHS Sheffield CCG,31/08/2017,C&M-PMS Prem Healthcentre Rent,PRC DELEGATED CO-COMMISSIONING,FOXHILL MEDICAL CENTRE SHEFFIELD,18351814,"45,910.32"
Department of Health,NHS Sheffield CCG,31/08/2017,C&M-PMS QOF Aspiration,PRC DELEGATED CO-COMMISSIONING,FOXHILL MEDICAL CENTRE SHEFFIELD,18351814,"5,736.75"
Department of Health,NHS Sheffield CCG,31/08/2017,C&M-PMS Contract Value,PRC DELEGATED CO-COMMISSIONING,GLEADLESS MEDICAL CENTRE,18351764,"67,346.75"
Department of Health,NHS Sheffield CCG,31/08/2017,C&M-PMS DES Minor Surgery,PRC DELEGATED CO-COMMISSIONING,GLEADLESS MEDICAL CENTRE,18351764,440
Department of Health,NHS Sheffield CCG,31/08/2017,C&M-PMS Funding Differential Review,PRC DELEGATED CO-COMMISSIONING,GLEADLESS MEDICAL CENTRE,18351764,"1,261.42"
Department of Health,NHS Sheffield CCG,31/08/2017,C&M-PMS PCO Other,PRC DELEGATED CO-COMMISSIONING,GLEADLESS MEDICAL CENTRE,18351764,452.6
Department of Health,NHS Sheffield CCG,31/08/2017,C&M-PMS Prem Notional Rent,PRC DELEGATED CO-COMMISSIONING,GLEADLESS MEDICAL CENTRE,18351764,"6,750.00"
Department of Health,NHS Sheffield CCG,31/08/2017,C&M-PMS Prem Rates,PRC DELEGATED CO-COMMISSIONING,GLEADLESS MEDICAL CENTRE,18351764,"1,250.00"
Department of Health,NHS Sheffield CCG,31/08/2017,C&M-PMS QOF Aspiration,PRC DELEGATED CO-COMMISSIONING,GLEADLESS MEDICAL CENTRE,18351764,"8,204.51"
Department of Health,NHS Sheffield CCG,31/08/2017,C&M-GMS Cost of Drugs -Prescribing,LOCAL ENHANCED SERVICES,GRENOSIDE SURGERY,18558320,"2,148.22"
Department of Health,NHS Sheffield CCG,31/08/2017,C&M-GMS DES Minor Surgery,PRC DELEGATED CO-COMMISSIONING,GRENOSIDE SURGERY,18558320,200
Department of Health,NHS Sheffield CCG,31/08/2017,C&M-GMS Global Sum,PRC DELEGATED CO-COMMISSIONING,GRENOSIDE SURGERY,18558320,"53,914.45"
Department of Health,NHS Sheffield CCG,31/08/2017,C&M-GMS PCO Locum Adop/Pat/Mat,PRC DELEGATED CO-COMMISSIONING,GRENOSIDE SURGERY,18558320,"6,243.38"
Department of Health,NHS Sheffield CCG,31/08/2017,C&M-GMS PCO Other,PRC DELEGATED CO-COMMISSIONING,GRENOSIDE SURGERY,18558320,452.6
Department of Health,NHS Sheffield CCG,31/08/2017,C&M-GMS Prem Notional Rent,PRC DELEGATED CO-COMMISSIONING,GRENOSIDE SURGERY,18558320,"8,150.17"
Department of Health,NHS Sheffield CCG,31/08/2017,C&M-GMS Prem Rates,PRC DELEGATED CO-COMMISSIONING,GRENOSIDE SURGERY,18558320,"1,643.00"
Department of Health,NHS Sheffield CCG,31/08/2017,C&M-GMS Prem Water Rates,PRC DELEGATED CO-COMMISSIONING,GRENOSIDE SURGERY,18558320,87.6
Department of Health,NHS Sheffield CCG,31/08/2017,C&M-GMS Prof Fees Prescribing,PRC DELEGATED CO-COMMISSIONING,GRENOSIDE SURGERY,18558320,106.44
Department of Health,NHS Sheffield CCG,31/08/2017,C&M-GMS QOF Aspiration,PRC DELEGATED CO-COMMISSIONING,GRENOSIDE SURGERY,18558320,"6,197.70"
Department of Health,NHS Sheffield CCG,31/08/2017,C&M-GMS Cost of Drugs -Prescribing,LOCAL ENHANCED SERVICES,GREYSTONES MEDICAL CENTRE,18558322,139.51
Department of Health,NHS Sheffield CCG,31/08/2017,C&M-GMS DES Learn Dsblty Hlth Chk,PRC DELEGATED CO-COMMISSIONING,GREYSTONES MEDICAL CENTRE,18558322,116
Department of Health,NHS Sheffield CCG,31/08/2017,C&M-GMS DES Minor Surgery,PRC DELEGATED CO-COMMISSIONING,GREYSTONES MEDICAL CENTRE,18558322,660
Department of Health,NHS Sheffield CCG,31/08/2017,C&M-GMS DES UNPLANNED ADMISSIONS,PRC DELEGATED CO-COMMISSIONING,GREYSTONES MEDICAL CENTRE,18558322,"2,787.40"
Department of Health,NHS Sheffield CCG,31/08/2017,C&M-GMS Global Sum,PRC DELEGATED CO-COMMISSIONING,GREYSTONES MEDICAL CENTRE,18558322,"18,375.45"
Department of Health,NHS Sheffield CCG,31/08/2017,C&M-GMS MPIG Correction Factor,PRC DELEGATED CO-COMMISSIONING,GREYSTONES MEDICAL CENTRE,18558322,"1,656.69"
Department of Health,NHS Sheffield CCG,31/08/2017,C&M-GMS PCO Other,PRC DELEGATED CO-COMMISSIONING,GREYSTONES MEDICAL CENTRE,18558322,384.5
Department of Health,NHS Sheffield CCG,31/08/2017,C&M-GMS Prem Notional Rent,PRC DELEGATED CO-COMMISSIONING,GREYSTONES MEDICAL CENTRE,18558322,"2,729.17"
Department of Health,NHS Sheffield CCG,31/08/2017,C&M-GMS Prem Rates,PRC DELEGATED CO-COMMISSIONING,GREYSTONES MEDICAL CENTRE,18558322,"2,916.60"
Department of Health,NHS Sheffield CCG,31/08/2017,C&M-GMS Prem Water Rates,PRC DELEGATED CO-COMMISSIONING,GREYSTONES MEDICAL CENTRE,18558322,67.9
Department of Health,NHS Sheffield CCG,31/08/2017,C&M-GMS Prof Fees Prescribing,PRC DELEGATED CO-COMMISSIONING,GREYSTONES MEDICAL CENTRE,18558322,41.65
Department of Health,NHS Sheffield CCG,31/08/2017,C&M-GMS QOF Aspiration,PRC DELEGATED CO-COMMISSIONING,GREYSTONES MEDICAL CENTRE,18558322,"2,071.10"
Department of Health,NHS Sheffield CCG,31/08/2017,C&M-PMS Contract Value,PRC DELEGATED CO-COMMISSIONING,HACKENTHORPE MEDICAL CENTRE,18351768,"45,627.06"
Department of Health,NHS Sheffield CCG,31/08/2017,C&M-PMS DES Learn Dsblty Hlth Chk,PRC DELEGATED CO-COMMISSIONING,HACKENTHORPE MEDICAL CENTRE,18351768,560
Department of Health,NHS Sheffield CCG,31/08/2017,C&M-PMS DES Minor Surgery,PRC DELEGATED CO-COMMISSIONING,HACKENTHORPE MEDICAL CENTRE,18351768,"1,795.00"
Department of Health,NHS Sheffield CCG,31/08/2017,C&M-PMS Funding Differential Review,PRC DELEGATED CO-COMMISSIONING,HACKENTHORPE MEDICAL CENTRE,18351768,"2,105.58"
Department of Health,NHS Sheffield CCG,31/08/2017,C&M-PMS Out of Hours Opt Outs,PRC DELEGATED CO-COMMISSIONING,HACKENTHORPE MEDICAL CENTRE,18351768,5.71
Department of Health,NHS Sheffield CCG,31/08/2017,C&M-PMS PCO Locum Adop/Pat/Mat,PRC DELEGATED CO-COMMISSIONING,HACKENTHORPE MEDICAL CENTRE,18351768,"4,904.09"
Department of Health,NHS Sheffield CCG,31/08/2017,C&M-PMS Prem Notional Rent,PRC DELEGATED CO-COMMISSIONING,HACKENTHORPE MEDICAL CENTRE,18351768,"4,981.25"
Department of Health,NHS Sheffield CCG,31/08/2017,C&M-PMS QOF Aspiration,PRC DELEGATED CO-COMMISSIONING,HACKENTHORPE MEDICAL CENTRE,18351768,"6,731.39"
Department of Health,NHS Sheffield CCG,31/08/2017,C&M-GMS Cost of Drugs -Prescribing,LOCAL ENHANCED SERVICES,HANDSWORTH MEDICAL PRACTICE SHEFFIELD,18558316,"1,445.56"
Department of Health,NHS Sheffield CCG,31/08/2017,C&M-GMS DES Minor Surgery,PRC DELEGATED CO-COMMISSIONING,HANDSWORTH MEDICAL PRACTICE SHEFFIELD,18558316,645
Department of Health,NHS Sheffield CCG,31/08/2017,C&M-GMS Global Sum,PRC DELEGATED CO-COMMISSIONING,HANDSWORTH MEDICAL PRACTICE SHEFFIELD,18558316,"71,741.75"
Department of Health,NHS Sheffield CCG,31/08/2017,C&M-GMS Prem Notional Rent,PRC DELEGATED CO-COMMISSIONING,HANDSWORTH MEDICAL PRACTICE SHEFFIELD,18558316,"3,321.66"
Department of Health,NHS Sheffield CCG,31/08/2017,C&M-GMS Prem Rates,PRC DELEGATED CO-COMMISSIONING,HANDSWORTH MEDICAL PRACTICE SHEFFIELD,18558316,"1,214.00"
Department of Health,NHS Sheffield CCG,31/08/2017,C&M-GMS Prem Water Rates,PRC DELEGATED CO-COMMISSIONING,HANDSWORTH MEDICAL PRACTICE SHEFFIELD,18558316,345.25
Department of Health,NHS Sheffield CCG,31/08/2017,C&M-GMS Prof Fees Prescribing,PRC DELEGATED CO-COMMISSIONING,HANDSWORTH MEDICAL PRACTICE SHEFFIELD,18558316,268.42
Department of Health,NHS Sheffield CCG,31/08/2017,C&M-GMS QOF Aspiration,PRC DELEGATED CO-COMMISSIONING,HANDSWORTH MEDICAL PRACTICE SHEFFIELD,18558316,"8,011.43"
Department of Health,NHS Sheffield CCG,31/08/2017,Cont Care-Foundation Trust,PLANNED CARE,HARROGATE & DISTRICT NHS FOUNDATION NHS TRUST,18477726,"44,437.80"
Department of Health,NHS Sheffield CCG,31/08/2017,Cont Care-Physical Disab (<65),CHC ADULT FULLY FUNDED,HC ONE LTD,18454340,"27,204.70"
Department of Health,NHS Sheffield CCG,31/08/2017,C&M-GMS Cost of Drugs -Prescribing,LOCAL ENHANCED SERVICES,HEALTH CARE SURGERY,18558328,182.2
Department of Health,NHS Sheffield CCG,31/08/2017,C&M-GMS DES Minor Surgery,PRC DELEGATED CO-COMMISSIONING,HEALTH CARE SURGERY,18558328,240
Department of Health,NHS Sheffield CCG,31/08/2017,C&M-GMS Global Sum,PRC DELEGATED CO-COMMISSIONING,HEALTH CARE SURGERY,18558328,"36,037.78"
Department of Health,NHS Sheffield CCG,31/08/2017,C&M-GMS MPIG Correction Factor,PRC DELEGATED CO-COMMISSIONING,HEALTH CARE SURGERY,18558328,"1,170.03"
Department of Health,NHS Sheffield CCG,31/08/2017,C&M-GMS PCO Locum Adop/Pat/Mat,PRC DELEGATED CO-COMMISSIONING,HEALTH CARE SURGERY,18558328,"14,424.00"
Department of Health,NHS Sheffield CCG,31/08/2017,C&M-GMS PCO Other,PRC DELEGATED CO-COMMISSIONING,HEALTH CARE SURGERY,18558328,384.5
Department of Health,NHS Sheffield CCG,31/08/2017,C&M-GMS Prem Notional Rent,PRC DELEGATED CO-COMMISSIONING,HEALTH CARE SURGERY,18558328,"3,862.50"
Department of Health,NHS Sheffield CCG,31/08/2017,C&M-GMS Prem Rates,PRC DELEGATED CO-COMMISSIONING,HEALTH CARE SURGERY,18558328,518
Department of Health,NHS Sheffield CCG,31/08/2017,C&M-GMS Prof Fees Prescribing,PRC DELEGATED CO-COMMISSIONING,HEALTH CARE SURGERY,18558328,76.36
Department of Health,NHS Sheffield CCG,31/08/2017,C&M-GMS QOF Aspiration,PRC DELEGATED CO-COMMISSIONING,HEALTH CARE SURGERY,18558328,"4,381.71"
Department of Health,NHS Sheffield CCG,31/08/2017,C&M-GMS Cost of Drugs -Prescribing,LOCAL ENHANCED SERVICES,HEELEY GREEN SURGERY,18558324,405.64
Department of Health,NHS Sheffield CCG,31/08/2017,C&M-GMS Global Sum,PRC DELEGATED CO-COMMISSIONING,HEELEY GREEN SURGERY,18558324,"39,215.99"
Department of Health,NHS Sheffield CCG,31/08/2017,C&M-GMS MPIG Correction Factor,PRC DELEGATED CO-COMMISSIONING,HEELEY GREEN SURGERY,18558324,564.3
Department of Health,NHS Sheffield CCG,31/08/2017,C&M-GMS Prem Notional Rent,PRC DELEGATED CO-COMMISSIONING,HEELEY GREEN SURGERY,18558324,"3,254.17"
Department of Health,NHS Sheffield CCG,31/08/2017,C&M-GMS Prem Rates,PRC DELEGATED CO-COMMISSIONING,HEELEY GREEN SURGERY,18558324,245
Department of Health,NHS Sheffield CCG,31/08/2017,C&M-GMS Prof Fees Prescribing,PRC DELEGATED CO-COMMISSIONING,HEELEY GREEN SURGERY,18558324,78.68
Department of Health,NHS Sheffield CCG,31/08/2017,C&M-GMS QOF Aspiration,PRC DELEGATED CO-COMMISSIONING,HEELEY GREEN SURGERY,18558324,"4,920.38"
Department of Health,NHS Sheffield CCG,31/08/2017,Cont Care-Learning Disab(<65),CHC ADULT FULLY FUNDED,HESLEY GROUP,18606462,"-47,352.53"
Department of Health,NHS Sheffield CCG,31/08/2017,C&M-GMS Cost of Drugs -Prescribing,LOCAL ENHANCED SERVICES,HOLLIES MEDICAL CENTRE,18558326,614.97
Department of Health,NHS Sheffield CCG,31/08/2017,C&M-GMS DES Minor Surgery,PRC DELEGATED CO-COMMISSIONING,HOLLIES MEDICAL CENTRE,18558326,"1,490.00"
Department of Health,NHS Sheffield CCG,31/08/2017,C&M-GMS Global Sum,PRC DELEGATED CO-COMMISSIONING,HOLLIES MEDICAL CENTRE,18558326,"52,067.42"
Department of Health,NHS Sheffield CCG,31/08/2017,C&M-GMS MPIG Correction Factor,PRC DELEGATED CO-COMMISSIONING,HOLLIES MEDICAL CENTRE,18558326,"2,179.09"
Department of Health,NHS Sheffield CCG,31/08/2017,C&M-GMS PCO Other,PRC DELEGATED CO-COMMISSIONING,HOLLIES MEDICAL CENTRE,18558326,452.6
Department of Health,NHS Sheffield CCG,31/08/2017,C&M-GMS Prem Notional Rent,PRC DELEGATED CO-COMMISSIONING,HOLLIES MEDICAL CENTRE,18558326,"3,229.17"
Department of Health,NHS Sheffield CCG,31/08/2017,C&M-GMS Prem Rates,PRC DELEGATED CO-COMMISSIONING,HOLLIES MEDICAL CENTRE,18558326,"1,188.00"
Department of Health,NHS Sheffield CCG,31/08/2017,C&M-GMS Prof Fees Prescribing,PRC DELEGATED CO-COMMISSIONING,HOLLIES MEDICAL CENTRE,18558326,111.07
Department of Health,NHS Sheffield CCG,31/08/2017,C&M-GMS QOF Aspiration,PRC DELEGATED CO-COMMISSIONING,HOLLIES MEDICAL CENTRE,18558326,"6,561.21"
Department of Health,NHS Sheffield CCG,31/08/2017,Cont Care-Physical Disab (<65),CHC ADULT FULLY FUNDED,HORIZON CARE HOMES LTD,18340293,"42,538.35"
Department of Health,NHS Sheffield CCG,31/08/2017,Cont Care-Physical Disab (<65),CHC ADULT FULLY FUNDED,HORIZON CARE HOMES LTD,18340339,"68,134.71"
Department of Health,NHS Sheffield CCG,31/08/2017,Cont Care-Physical Disab (<65),CHC ADULT FULLY FUNDED,HORIZON CARE HOMES LTD,18454266,"38,355.49"
Department of Health,NHS Sheffield CCG,31/08/2017,C&M-PMS Contract Value,PRC DELEGATED CO-COMMISSIONING,JAUNTY SPRINGS HEALTH CENTRE,18351770,"28,715.63"
Department of Health,NHS Sheffield CCG,31/08/2017,C&M-PMS DES Minor Surgery,PRC DELEGATED CO-COMMISSIONING,JAUNTY SPRINGS HEALTH CENTRE,18351770,250
Department of Health,NHS Sheffield CCG,31/08/2017,C&M-PMS Funding Differential Review,PRC DELEGATED CO-COMMISSIONING,JAUNTY SPRINGS HEALTH CENTRE,18351770,448
Department of Health,NHS Sheffield CCG,31/08/2017,C&M-PMS Out of Hours Opt Outs,PRC DELEGATED CO-COMMISSIONING,JAUNTY SPRINGS HEALTH CENTRE,18351770,1.3
Department of Health,NHS Sheffield CCG,31/08/2017,C&M-PMS PCO Other,PRC DELEGATED CO-COMMISSIONING,JAUNTY SPRINGS HEALTH CENTRE,18351770,384.5
Department of Health,NHS Sheffield CCG,31/08/2017,C&M-PMS Prem Notional Rent,PRC DELEGATED CO-COMMISSIONING,JAUNTY SPRINGS HEALTH CENTRE,18351770,"3,208.33"
Department of Health,NHS Sheffield CCG,31/08/2017,C&M-PMS Prem Rates,PRC DELEGATED CO-COMMISSIONING,JAUNTY SPRINGS HEALTH CENTRE,18351770,570
Department of Health,NHS Sheffield CCG,31/08/2017,C&M-PMS QOF Aspiration,PRC DELEGATED CO-COMMISSIONING,JAUNTY SPRINGS HEALTH CENTRE,18351770,"4,393.31"
Department of Health,NHS Sheffield CCG,31/08/2017,C&M-GMS IT Comm Servs -GP Practices,PRIMARY CARE IT,KIER BUSINESS SERVICES LTD,18296590,"105,622.80"
Department of Health,NHS Sheffield CCG,31/08/2017,FM Computer Contracts,BUSINESS INFORMATICS,KIER BUSINESS SERVICES LTD,18296590,"37,381.20"
Department of Health,NHS Sheffield CCG,31/08/2017,IT(Owned)-Cost-Addns-IT,CHC ADULT FULLY FUNDED,KIER BUSINESS SERVICES LTD,18541249,"-105,000.00"
Department of Health,NHS Sheffield CCG,31/08/2017,IT(Owned)-Cost-Addns-IT,CHC ADULT FULLY FUNDED,KIER BUSINESS SERVICES LTD,18552600,"105,000.00"
Department of Health,NHS Sheffield CCG,31/08/2017,C&M-GMS LES Translation Fees,INTERPRETING SERVICES,LANGUAGELINE SOLUTIONS,18320839,"68,340.01"
Department of Health,NHS Sheffield CCG,31/08/2017,Hcare Srv Rec NHS Trust-Contract Baseline,ACUTE COMMISSIONING,LEEDS TEACHING HOSPITALS NHS TRUST,18320803,"61,809.00"
Department of Health,NHS Sheffield CCG,31/08/2017,Cont Care-Physical Disab (<65),CHC ADULT FULLY FUNDED,LONGLEY HEALTH CARE LTD,18340438,"53,658.48"
Department of Health,NHS Sheffield CCG,31/08/2017,Cont Care-Physical Disab (<65),CHC ADULT FULLY FUNDED,LOXLEY HEALTH CARE LTD,18340453,"56,016.94"
Department of Health,NHS Sheffield CCG,31/08/2017,C&M-PMS Contract Value,PRC DELEGATED CO-COMMISSIONING,MANCHESTER ROAD SURGERY SHEFFIELD,18351774,"29,975.76"
Department of Health,NHS Sheffield CCG,31/08/2017,C&M-PMS DES Minor Surgery,PRC DELEGATED CO-COMMISSIONING,MANCHESTER ROAD SURGERY SHEFFIELD,18351774,"1,140.00"
Department of Health,NHS Sheffield CCG,31/08/2017,C&M-PMS Funding Differential Review,PRC DELEGATED CO-COMMISSIONING,MANCHESTER ROAD SURGERY SHEFFIELD,18351774,446.67
Department of Health,NHS Sheffield CCG,31/08/2017,C&M-PMS Prem Cost Rent,PRC DELEGATED CO-COMMISSIONING,MANCHESTER ROAD SURGERY SHEFFIELD,18351774,"3,472.17"
Department of Health,NHS Sheffield CCG,31/08/2017,C&M-PMS Prem Notional Rent,PRC DELEGATED CO-COMMISSIONING,MANCHESTER ROAD SURGERY SHEFFIELD,18351774,442.92
Department of Health,NHS Sheffield CCG,31/08/2017,C&M-PMS Prem Rates,PRC DELEGATED CO-COMMISSIONING,MANCHESTER ROAD SURGERY SHEFFIELD,18351774,920
Department of Health,NHS Sheffield CCG,31/08/2017,C&M-PMS QOF Aspiration,PRC DELEGATED CO-COMMISSIONING,MANCHESTER ROAD SURGERY SHEFFIELD,18351774,"4,335.60"
Department of Health,NHS Sheffield CCG,31/08/2017,C&M-GMS Cost of Drugs -Prescribing,LOCAL ENHANCED SERVICES,MANOR PARK MEDICAL CENTRE SHEFFIELD,18558339,720.12
Department of Health,NHS Sheffield CCG,31/08/2017,C&M-GMS DES Minor Surgery,PRC DELEGATED CO-COMMISSIONING,MANOR PARK MEDICAL CENTRE SHEFFIELD,18558339,200
Department of Health,NHS Sheffield CCG,31/08/2017,C&M-GMS Global Sum,PRC DELEGATED CO-COMMISSIONING,MANOR PARK MEDICAL CENTRE SHEFFIELD,18558339,"33,032.73"
Department of Health,NHS Sheffield CCG,31/08/2017,C&M-GMS MPIG Correction Factor,PRC DELEGATED CO-COMMISSIONING,MANOR PARK MEDICAL CENTRE SHEFFIELD,18558339,559.19
Department of Health,NHS Sheffield CCG,31/08/2017,C&M-GMS Prem Notional Rent,PRC DELEGATED CO-COMMISSIONING,MANOR PARK MEDICAL CENTRE SHEFFIELD,18558339,"3,050.00"
Department of Health,NHS Sheffield CCG,31/08/2017,C&M-GMS Prem Rates,PRC DELEGATED CO-COMMISSIONING,MANOR PARK MEDICAL CENTRE SHEFFIELD,18558339,428
Department of Health,NHS Sheffield CCG,31/08/2017,C&M-GMS Prof Fees Prescribing,PRC DELEGATED CO-COMMISSIONING,MANOR PARK MEDICAL CENTRE SHEFFIELD,18558339,90.25
Department of Health,NHS Sheffield CCG,31/08/2017,C&M-GMS QOF Aspiration,PRC DELEGATED CO-COMMISSIONING,MANOR PARK MEDICAL CENTRE SHEFFIELD,18558339,"4,479.66"
Department of Health,NHS Sheffield CCG,31/08/2017,C&M-GMS Cost of Drugs -Prescribing,LOCAL ENHANCED SERVICES,MATHEWS PRACTICE,18558336,829.41
Department of Health,NHS Sheffield CCG,31/08/2017,C&M-GMS DES Minor Surgery,PRC DELEGATED CO-COMMISSIONING,MATHEWS PRACTICE,18558336,"1,840.00"
Department of Health,NHS Sheffield CCG,31/08/2017,C&M-GMS Global Sum,PRC DELEGATED CO-COMMISSIONING,MATHEWS PRACTICE,18558336,"65,707.91"
Department of Health,NHS Sheffield CCG,31/08/2017,C&M-GMS MPIG Correction Factor,PRC DELEGATED CO-COMMISSIONING,MATHEWS PRACTICE,18558336,898.44
Department of Health,NHS Sheffield CCG,31/08/2017,C&M-GMS Prem Notional Rent,PRC DELEGATED CO-COMMISSIONING,MATHEWS PRACTICE,18558336,"8,583.34"
Department of Health,NHS Sheffield CCG,31/08/2017,C&M-GMS Prem Rates,PRC DELEGATED CO-COMMISSIONING,MATHEWS PRACTICE,18558336,"1,757.00"
Department of Health,NHS Sheffield CCG,31/08/2017,C&M-GMS Prof Fees Prescribing,PRC DELEGATED CO-COMMISSIONING,MATHEWS PRACTICE,18558336,199
Department of Health,NHS Sheffield CCG,31/08/2017,C&M-GMS QOF Aspiration,PRC DELEGATED CO-COMMISSIONING,MATHEWS PRACTICE,18558336,"9,686.98"
Department of Health,NHS Sheffield CCG,31/08/2017,C&M-PMS Contract Value,PRC DELEGATED CO-COMMISSIONING,MEADOWHEAD GROUP PRACTICE,18351772,"75,473.75"
Department of Health,NHS Sheffield CCG,31/08/2017,C&M-PMS DES Learn Dsblty Hlth Chk,PRC DELEGATED CO-COMMISSIONING,MEADOWHEAD GROUP PRACTICE,18351772,280
Department of Health,NHS Sheffield CCG,31/08/2017,C&M-PMS DES Minor Surgery,PRC DELEGATED CO-COMMISSIONING,MEADOWHEAD GROUP PRACTICE,18351772,"2,025.00"
Department of Health,NHS Sheffield CCG,31/08/2017,C&M-PMS Prem Cost Rent,PRC DELEGATED CO-COMMISSIONING,MEADOWHEAD GROUP PRACTICE,18351772,"3,647.42"
Department of Health,NHS Sheffield CCG,31/08/2017,C&M-PMS Prem Notional Rent,PRC DELEGATED CO-COMMISSIONING,MEADOWHEAD GROUP PRACTICE,18351772,"3,358.33"
Department of Health,NHS Sheffield CCG,31/08/2017,C&M-PMS Prem Rates,PRC DELEGATED CO-COMMISSIONING,MEADOWHEAD GROUP PRACTICE,18351772,"1,709.00"
Department of Health,NHS Sheffield CCG,31/08/2017,C&M-PMS QOF Aspiration,PRC DELEGATED CO-COMMISSIONING,MEADOWHEAD GROUP PRACTICE,18351772,"10,533.01"
Department of Health,NHS Sheffield CCG,31/08/2017,C&M-GMS Cost of Drugs -Prescribing,LOCAL ENHANCED SERVICES,MEDICAL CENTRE CRYSTAL PEAKS,18558332,688.44
Department of Health,NHS Sheffield CCG,31/08/2017,C&M-GMS DES Minor Surgery,PRC DELEGATED CO-COMMISSIONING,MEDICAL CENTRE CRYSTAL PEAKS,18558332,"4,570.00"
Department of Health,NHS Sheffield CCG,31/08/2017,C&M-GMS DES UNPLANNED ADMISSIONS,PRC DELEGATED CO-COMMISSIONING,MEDICAL CENTRE CRYSTAL PEAKS,18558332,"5,003.46"
Department of Health,NHS Sheffield CCG,31/08/2017,C&M-GMS Global Sum,PRC DELEGATED CO-COMMISSIONING,MEDICAL CENTRE CRYSTAL PEAKS,18558332,"43,411.71"
Department of Health,NHS Sheffield CCG,31/08/2017,C&M-GMS MPIG Correction Factor,PRC DELEGATED CO-COMMISSIONING,MEDICAL CENTRE CRYSTAL PEAKS,18558332,"1,697.01"
Department of Health,NHS Sheffield CCG,31/08/2017,C&M-GMS PCO Other,PRC DELEGATED CO-COMMISSIONING,MEDICAL CENTRE CRYSTAL PEAKS,18558332,452.6
Department of Health,NHS Sheffield CCG,31/08/2017,C&M-GMS Prem Notional Rent,PRC DELEGATED CO-COMMISSIONING,MEDICAL CENTRE CRYSTAL PEAKS,18558332,270
Department of Health,NHS Sheffield CCG,31/08/2017,C&M-GMS Prem Rates,PRC DELEGATED CO-COMMISSIONING,MEDICAL CENTRE CRYSTAL PEAKS,18558332,"1,822.00"
Department of Health,NHS Sheffield CCG,31/08/2017,C&M-GMS Prof Fees Prescribing,PRC DELEGATED CO-COMMISSIONING,MEDICAL CENTRE CRYSTAL PEAKS,18558332,263.81
Department of Health,NHS Sheffield CCG,31/08/2017,C&M-GMS QOF Aspiration,PRC DELEGATED CO-COMMISSIONING,MEDICAL CENTRE CRYSTAL PEAKS,18558332,"6,023.36"
Department of Health,NHS Sheffield CCG,31/08/2017,C&M-GMS Cost of Drugs -Prescribing,LOCAL ENHANCED SERVICES,MILL ROAD SURGERY SHEFFIELD,18558341,740.13
Department of Health,NHS Sheffield CCG,31/08/2017,C&M-GMS DES Minor Surgery,PRC DELEGATED CO-COMMISSIONING,MILL ROAD SURGERY SHEFFIELD,18558341,360
Department of Health,NHS Sheffield CCG,31/08/2017,C&M-GMS Global Sum,PRC DELEGATED CO-COMMISSIONING,MILL ROAD SURGERY SHEFFIELD,18558341,"37,785.02"
Department of Health,NHS Sheffield CCG,31/08/2017,C&M-GMS MPIG Correction Factor,PRC DELEGATED CO-COMMISSIONING,MILL ROAD SURGERY SHEFFIELD,18558341,183.06
Department of Health,NHS Sheffield CCG,31/08/2017,C&M-GMS PCO Other,PRC DELEGATED CO-COMMISSIONING,MILL ROAD SURGERY SHEFFIELD,18558341,452.6
Department of Health,NHS Sheffield CCG,31/08/2017,C&M-GMS Prem Notional Rent,PRC DELEGATED CO-COMMISSIONING,MILL ROAD SURGERY SHEFFIELD,18558341,"4,587.50"
Department of Health,NHS Sheffield CCG,31/08/2017,C&M-GMS Prem Rates,PRC DELEGATED CO-COMMISSIONING,MILL ROAD SURGERY SHEFFIELD,18558341,833
Department of Health,NHS Sheffield CCG,31/08/2017,C&M-GMS Prof Fees Prescribing,PRC DELEGATED CO-COMMISSIONING,MILL ROAD SURGERY SHEFFIELD,18558341,106.44
Department of Health,NHS Sheffield CCG,31/08/2017,C&M-GMS QOF Aspiration,PRC DELEGATED CO-COMMISSIONING,MILL ROAD SURGERY SHEFFIELD,18558341,"5,445.09"
Department of Health,NHS Sheffield CCG,31/08/2017,C&M-PMS Contract Value,PRC DELEGATED CO-COMMISSIONING,MOSBOROUGH HEALTH CENTRE,18351776,"45,903.40"
Department of Health,NHS Sheffield CCG,31/08/2017,C&M-PMS DES Learn Dsblty Hlth Chk,PRC DELEGATED CO-COMMISSIONING,MOSBOROUGH HEALTH CENTRE,18351776,280
Department of Health,NHS Sheffield CCG,31/08/2017,C&M-PMS DES Minor Surgery,PRC DELEGATED CO-COMMISSIONING,MOSBOROUGH HEALTH CENTRE,18351776,"1,640.00"
Department of Health,NHS Sheffield CCG,31/08/2017,C&M-PMS Funding Differential Review,PRC DELEGATED CO-COMMISSIONING,MOSBOROUGH HEALTH CENTRE,18351776,"1,253.00"
Department of Health,NHS Sheffield CCG,31/08/2017,C&M-PMS PCO Other,PRC DELEGATED CO-COMMISSIONING,MOSBOROUGH HEALTH CENTRE,18351776,452.6
Department of Health,NHS Sheffield CCG,31/08/2017,C&M-PMS Prem Notional Rent,PRC DELEGATED CO-COMMISSIONING,MOSBOROUGH HEALTH CENTRE,18351776,"4,091.67"
Department of Health,NHS Sheffield CCG,31/08/2017,C&M-PMS QOF Aspiration,PRC DELEGATED CO-COMMISSIONING,MOSBOROUGH HEALTH CENTRE,18351776,"6,017.44"
Department of Health,NHS Sheffield CCG,31/08/2017,C&M-PMS Contract Value,PRC DELEGATED CO-COMMISSIONING,NETHERGREEN SURGERY,18351778,"60,075.27"
Department of Health,NHS Sheffield CCG,31/08/2017,C&M-PMS DES Minor Surgery,PRC DELEGATED CO-COMMISSIONING,NETHERGREEN SURGERY,18351778,"2,435.00"
Department of Health,NHS Sheffield CCG,31/08/2017,C&M-PMS Funding Differential Review,PRC DELEGATED CO-COMMISSIONING,NETHERGREEN SURGERY,18351778,"1,876.58"
Department of Health,NHS Sheffield CCG,31/08/2017,C&M-PMS Prem Cost Rent,PRC DELEGATED CO-COMMISSIONING,NETHERGREEN SURGERY,18351778,"5,057.33"
Department of Health,NHS Sheffield CCG,31/08/2017,C&M-PMS Prem Rates,PRC DELEGATED CO-COMMISSIONING,NETHERGREEN SURGERY,18351778,"1,200.00"
Department of Health,NHS Sheffield CCG,31/08/2017,C&M-PMS QOF Aspiration,PRC DELEGATED CO-COMMISSIONING,NETHERGREEN SURGERY,18351778,"6,339.79"
Department of Health,NHS Sheffield CCG,31/08/2017,Cont Care-Physical Disab (<65),CHC ADULT FULLY FUNDED,NEVILLE HEALTH CARE LTD,18340313,"57,576.26"
Department of Health,NHS Sheffield CCG,31/08/2017,C&M-GMS Prem Other,PRC DELEGATED CO-COMMISSIONING,NHS ENGLAND,18320832,"9,820.68"
Department of Health,NHS Sheffield CCG,31/08/2017,C&M-PMS Prem Actual Rent,PRC DELEGATED CO-COMMISSIONING,NHS ENGLAND,18320832,"24,915.00"
Department of Health,NHS Sheffield CCG,31/08/2017,Contract- Refuse & Clinical Waste,PRC DELEGATED CO-COMMISSIONING,NHS ENGLAND,18320832,"52,731.68"
Department of Health,NHS Sheffield CCG,31/08/2017,Charges from CSU,BUSINESS INFORMATICS,NHS NORTH OF ENGLAND CSU,18267588,"30,083.00"
Department of Health,NHS Sheffield CCG,31/08/2017,Charges from CSU,BUSINESS INFORMATICS,NHS NORTH OF ENGLAND CSU,18579803,"30,083.00"
Department of Health,NHS Sheffield CCG,31/08/2017,C&M-GMS Cost of Drugs -Prescribing,LOCAL ENHANCED SERVICES,NORFOLK PARK HEALTH CENTRE,18558346,812.29
Department of Health,NHS Sheffield CCG,31/08/2017,C&M-GMS DES Minor Surgery,PRC DELEGATED CO-COMMISSIONING,NORFOLK PARK HEALTH CENTRE,18558346,510
Department of Health,NHS Sheffield CCG,31/08/2017,C&M-GMS Global Sum,PRC DELEGATED CO-COMMISSIONING,NORFOLK PARK HEALTH CENTRE,18558346,"33,821.75"
Department of Health,NHS Sheffield CCG,31/08/2017,C&M-GMS MPIG Correction Factor,PRC DELEGATED CO-COMMISSIONING,NORFOLK PARK HEALTH CENTRE,18558346,"1,386.91"
Department of Health,NHS Sheffield CCG,31/08/2017,C&M-GMS Prem Healthcentre Rent,PRC DELEGATED CO-COMMISSIONING,NORFOLK PARK HEALTH CENTRE,18558346,"21,922.34"
Department of Health,NHS Sheffield CCG,31/08/2017,C&M-GMS Prof Fees Prescribing,PRC DELEGATED CO-COMMISSIONING,NORFOLK PARK HEALTH CENTRE,18558346,87.92
Department of Health,NHS Sheffield CCG,31/08/2017,C&M-GMS QOF Aspiration,PRC DELEGATED CO-COMMISSIONING,NORFOLK PARK HEALTH CENTRE,18558346,"4,068.39"
Department of Health,NHS Sheffield CCG,31/08/2017,Clinical&Medical-Commercial Sector,PATIENT TRANSPORT,NORTHERN TAXIS LTD,18320838,"161,646.60"
Department of Health,NHS Sheffield CCG,31/08/2017,Hcare Srv Rec NHS Trust-Non Contract,NCAS/OATS,NORTHUMBERLAND TYNE AND WEAR NHS FOUNDATION TRUST,18606582,"74,741.00"
Department of Health,NHS Sheffield CCG,31/08/2017,C&M-GMS Cost of Drugs -Prescribing,LOCAL ENHANCED SERVICES,NORWOOD MEDICAL CENTRE SHEFFIELD,18558349,289.77
Department of Health,NHS Sheffield CCG,31/08/2017,C&M-GMS DES Minor Surgery,PRC DELEGATED CO-COMMISSIONING,NORWOOD MEDICAL CENTRE SHEFFIELD,18558349,"2,845.00"
Department of Health,NHS Sheffield CCG,31/08/2017,C&M-GMS Global Sum,PRC DELEGATED CO-COMMISSIONING,NORWOOD MEDICAL CENTRE SHEFFIELD,18558349,"60,950.79"
Department of Health,NHS Sheffield CCG,31/08/2017,C&M-GMS PCO Other,PRC DELEGATED CO-COMMISSIONING,NORWOOD MEDICAL CENTRE SHEFFIELD,18558349,452.6
Department of Health,NHS Sheffield CCG,31/08/2017,C&M-GMS Prem Notional Rent,PRC DELEGATED CO-COMMISSIONING,NORWOOD MEDICAL CENTRE SHEFFIELD,18558349,"5,187.50"
Department of Health,NHS Sheffield CCG,31/08/2017,C&M-GMS Prof Fees Prescribing,PRC DELEGATED CO-COMMISSIONING,NORWOOD MEDICAL CENTRE SHEFFIELD,18558349,87.92
Department of Health,NHS Sheffield CCG,31/08/2017,C&M-GMS QOF Aspiration,PRC DELEGATED CO-COMMISSIONING,NORWOOD MEDICAL CENTRE SHEFFIELD,18558349,"8,411.55"
Department of Health,NHS Sheffield CCG,31/08/2017,Clinical&Medical-Independent Sector,ACUTE COMMISSIONING,ONEHEALTH GROUP,18380596,"90,000.00"
Department of Health,NHS Sheffield CCG,31/08/2017,C&M-GMS Cost of Drugs -Dispensing,LOCAL ENHANCED SERVICES,OUGHTIBRIDGE SURGERY,18558353,"30,133.29"
Department of Health,NHS Sheffield CCG,31/08/2017,C&M-GMS DES Minor Surgery,PRC DELEGATED CO-COMMISSIONING,OUGHTIBRIDGE SURGERY,18558353,360
Department of Health,NHS Sheffield CCG,31/08/2017,C&M-GMS Global Sum,PRC DELEGATED CO-COMMISSIONING,OUGHTIBRIDGE SURGERY,18558353,"41,235.48"
Department of Health,NHS Sheffield CCG,31/08/2017,C&M-GMS Prem Notional Rent,PRC DELEGATED CO-COMMISSIONING,OUGHTIBRIDGE SURGERY,18558353,"3,888.33"
Department of Health,NHS Sheffield CCG,31/08/2017,C&M-GMS Prof Fees Dispensing,PRC DELEGATED CO-COMMISSIONING,OUGHTIBRIDGE SURGERY,18558353,"4,869.02"
Department of Health,NHS Sheffield CCG,31/08/2017,C&M-GMS PrscrptnChrgsColl&RmttdbyGP,LOCAL ENHANCED SERVICES,OUGHTIBRIDGE SURGERY,18558353,774
Department of Health,NHS Sheffield CCG,31/08/2017,C&M-GMS QOF Aspiration,PRC DELEGATED CO-COMMISSIONING,OUGHTIBRIDGE SURGERY,18558353,"4,693.88"
Department of Health,NHS Sheffield CCG,31/08/2017,C&M-PMS Contract Value,PRC DELEGATED CO-COMMISSIONING,OWLTHORPE MEDICAL CENTRE,18351780,"36,000.73"
Department of Health,NHS Sheffield CCG,31/08/2017,C&M-PMS DES Minor Surgery,PRC DELEGATED CO-COMMISSIONING,OWLTHORPE MEDICAL CENTRE,18351780,285
Department of Health,NHS Sheffield CCG,31/08/2017,C&M-PMS Funding Differential Review,PRC DELEGATED CO-COMMISSIONING,OWLTHORPE MEDICAL CENTRE,18351780,"1,499.67"
Department of Health,NHS Sheffield CCG,31/08/2017,C&M-PMS Out of Hours Opt Outs,PRC DELEGATED CO-COMMISSIONING,OWLTHORPE MEDICAL CENTRE,18351780,44.79
Department of Health,NHS Sheffield CCG,31/08/2017,C&M-PMS PCO Other,PRC DELEGATED CO-COMMISSIONING,OWLTHORPE MEDICAL CENTRE,18351780,384.5
Department of Health,NHS Sheffield CCG,31/08/2017,C&M-PMS Prem Actual Rent,PRC DELEGATED CO-COMMISSIONING,OWLTHORPE MEDICAL CENTRE,18351780,"14,182.86"
Department of Health,NHS Sheffield CCG,31/08/2017,C&M-PMS QOF Aspiration,PRC DELEGATED CO-COMMISSIONING,OWLTHORPE MEDICAL CENTRE,18351780,"4,031.40"
Department of Health,NHS Sheffield CCG,31/08/2017,C&M-PMS Contract Value,PRC DELEGATED CO-COMMISSIONING,PAGE HALL MEDICAL CENTRE,18351782,"53,335.89"
Department of Health,NHS Sheffield CCG,31/08/2017,C&M-PMS DES Minor Surgery,PRC DELEGATED CO-COMMISSIONING,PAGE HALL MEDICAL CENTRE,18351782,480
Department of Health,NHS Sheffield CCG,31/08/2017,C&M-PMS Funding Differential Review,PRC DELEGATED CO-COMMISSIONING,PAGE HALL MEDICAL CENTRE,18351782,"5,391.08"
Department of Health,NHS Sheffield CCG,31/08/2017,C&M-PMS Out of Hours Opt Outs,PRC DELEGATED CO-COMMISSIONING,PAGE HALL MEDICAL CENTRE,18351782,0.35
Department of Health,NHS Sheffield CCG,31/08/2017,C&M-PMS Prem Actual Rent,PRC DELEGATED CO-COMMISSIONING,PAGE HALL MEDICAL CENTRE,18351782,135
Department of Health,NHS Sheffield CCG,31/08/2017,C&M-PMS Prem Notional Rent,PRC DELEGATED CO-COMMISSIONING,PAGE HALL MEDICAL CENTRE,18351782,"4,833.33"
Department of Health,NHS Sheffield CCG,31/08/2017,C&M-PMS Prem Rates,PRC DELEGATED CO-COMMISSIONING,PAGE HALL MEDICAL CENTRE,18351782,875
Department of Health,NHS Sheffield CCG,31/08/2017,C&M-PMS QOF Aspiration,PRC DELEGATED CO-COMMISSIONING,PAGE HALL MEDICAL CENTRE,18351782,"5,102.24"
Department of Health,NHS Sheffield CCG,31/08/2017,C&M-PMS Contract Value,PRC DELEGATED CO-COMMISSIONING,PARK HEALTH CENTRE,18351784,"40,085.43"
Department of Health,NHS Sheffield CCG,31/08/2017,C&M-PMS DES Minor Surgery,PRC DELEGATED CO-COMMISSIONING,PARK HEALTH CENTRE,18351784,765
Department of Health,NHS Sheffield CCG,31/08/2017,C&M-PMS Funding Differential Review,PRC DELEGATED CO-COMMISSIONING,PARK HEALTH CENTRE,18351784,"3,290.17"
Department of Health,NHS Sheffield CCG,31/08/2017,C&M-PMS Out of Hours Opt Outs,PRC DELEGATED CO-COMMISSIONING,PARK HEALTH CENTRE,18351784,33.14
Department of Health,NHS Sheffield CCG,31/08/2017,C&M-PMS PCO Other,PRC DELEGATED CO-COMMISSIONING,PARK HEALTH CENTRE,18351784,452.6
Department of Health,NHS Sheffield CCG,31/08/2017,C&M-PMS Prem Notional Rent,PRC DELEGATED CO-COMMISSIONING,PARK HEALTH CENTRE,18351784,"6,000.00"
Department of Health,NHS Sheffield CCG,31/08/2017,C&M-PMS QOF Aspiration,PRC DELEGATED CO-COMMISSIONING,PARK HEALTH CENTRE,18351784,"4,293.17"
Department of Health,NHS Sheffield CCG,31/08/2017,C&M-PMS Contract Value,PRC DELEGATED CO-COMMISSIONING,PITSMOOR SURGERY,18351786,"76,031.60"
Department of Health,NHS Sheffield CCG,31/08/2017,C&M-PMS DES Learn Dsblty Hlth Chk,PRC DELEGATED CO-COMMISSIONING,PITSMOOR SURGERY,18351786,"2,380.00"
Department of Health,NHS Sheffield CCG,31/08/2017,C&M-PMS DES Minor Surgery,PRC DELEGATED CO-COMMISSIONING,PITSMOOR SURGERY,18351786,"2,065.00"
Department of Health,NHS Sheffield CCG,31/08/2017,C&M-PMS Prem Notional Rent,PRC DELEGATED CO-COMMISSIONING,PITSMOOR SURGERY,18351786,"9,650.00"
Department of Health,NHS Sheffield CCG,31/08/2017,C&M-PMS Prem Water Rates,PRC DELEGATED CO-COMMISSIONING,PITSMOOR SURGERY,18351786,810.95
Department of Health,NHS Sheffield CCG,31/08/2017,C&M-PMS QOF Aspiration,PRC DELEGATED CO-COMMISSIONING,PITSMOOR SURGERY,18351786,"7,463.31"
Department of Health,NHS Sheffield CCG,31/08/2017,C&M-PMS Contract Value,PRC DELEGATED CO-COMMISSIONING,PORTER BROOK MEDICAL CENTRE,18351787,"-1,402.74"
Department of Health,NHS Sheffield CCG,31/08/2017,C&M-PMS GP Statutory Levy,PRC DELEGATED CO-COMMISSIONING,PORTER BROOK MEDICAL CENTRE,18351787,-831.48
Department of Health,NHS Sheffield CCG,31/08/2017,C&M-PMS Out of Hours Opt Outs,PRC DELEGATED CO-COMMISSIONING,PORTER BROOK MEDICAL CENTRE,18351787,"-7,538.64"
Department of Health,NHS Sheffield CCG,31/08/2017,C&M-PMS Voluntary Levy,PRC DELEGATED CO-COMMISSIONING,PORTER BROOK MEDICAL CENTRE,18351787,-138.58
Department of Health,NHS Sheffield CCG,31/08/2017,C&M-PMS Contract Value,PRC DELEGATED CO-COMMISSIONING,PORTER BROOK MEDICAL CENTRE,18351788,"159,923.39"
Department of Health,NHS Sheffield CCG,31/08/2017,C&M-PMS DES Minor Surgery,PRC DELEGATED CO-COMMISSIONING,PORTER BROOK MEDICAL CENTRE,18351788,"4,955.00"
Department of Health,NHS Sheffield CCG,31/08/2017,C&M-PMS Funding Differential Review,PRC DELEGATED CO-COMMISSIONING,PORTER BROOK MEDICAL CENTRE,18351788,"5,112.08"
Department of Health,NHS Sheffield CCG,31/08/2017,C&M-PMS Out of Hours Opt Outs,PRC DELEGATED CO-COMMISSIONING,PORTER BROOK MEDICAL CENTRE,18351788,72.23
Department of Health,NHS Sheffield CCG,31/08/2017,C&M-PMS PCO Other,PRC DELEGATED CO-COMMISSIONING,PORTER BROOK MEDICAL CENTRE,18351788,591.8
Department of Health,NHS Sheffield CCG,31/08/2017,C&M-PMS Prem Actual Rent,PRC DELEGATED CO-COMMISSIONING,PORTER BROOK MEDICAL CENTRE,18351788,"1,333.33"
Department of Health,NHS Sheffield CCG,31/08/2017,C&M-PMS Prem Notional Rent,PRC DELEGATED CO-COMMISSIONING,PORTER BROOK MEDICAL CENTRE,18351788,"9,559.58"
Department of Health,NHS Sheffield CCG,31/08/2017,C&M-PMS Prem Rates,PRC DELEGATED CO-COMMISSIONING,PORTER BROOK MEDICAL CENTRE,18351788,"1,956.00"
Department of Health,NHS Sheffield CCG,31/08/2017,C&M-PMS Prem Water Rates,PRC DELEGATED CO-COMMISSIONING,PORTER BROOK MEDICAL CENTRE,18351788,257.14
Department of Health,NHS Sheffield CCG,31/08/2017,C&M-PMS QOF Aspiration,PRC DELEGATED CO-COMMISSIONING,PORTER BROOK MEDICAL CENTRE,18351788,"8,899.04"
Department of Health,NHS Sheffield CCG,31/08/2017,C&M-APMS DES Extended Hours Access,LOCAL ENHANCED SERVICES,PRIMARY CARE SHEFFIELD LTD,18296607,"289,935.16"
Department of Health,NHS Sheffield CCG,31/08/2017,C&M-GMS LES Basket of Procedures,LOCAL ENHANCED SERVICES,PRIMARY CARE SHEFFIELD LTD,18380120,"26,030.00"
Department of Health,NHS Sheffield CCG,31/08/2017,C&M-GMS LES Basket of Procedures,LOCAL ENHANCED SERVICES,PRIMARY CARE SHEFFIELD LTD,18618019,"44,329.75"
Department of Health,NHS Sheffield CCG,31/08/2017,C&M-PMS Contract Value,PRC DELEGATED CO-COMMISSIONING,RICHMOND MEDICAL CENTRE,18351790,"61,056.97"
Department of Health,NHS Sheffield CCG,31/08/2017,C&M-PMS DES Minor Surgery,PRC DELEGATED CO-COMMISSIONING,RICHMOND MEDICAL CENTRE,18351790,"2,185.00"
Department of Health,NHS Sheffield CCG,31/08/2017,C&M-PMS Funding Differential Review,PRC DELEGATED CO-COMMISSIONING,RICHMOND MEDICAL CENTRE,18351790,"1,802.33"
Department of Health,NHS Sheffield CCG,31/08/2017,C&M-PMS PCO Other,PRC DELEGATED CO-COMMISSIONING,RICHMOND MEDICAL CENTRE,18351790,452.6
Department of Health,NHS Sheffield CCG,31/08/2017,C&M-PMS Prem Notional Rent,PRC DELEGATED CO-COMMISSIONING,RICHMOND MEDICAL CENTRE,18351790,"4,700.00"
Department of Health,NHS Sheffield CCG,31/08/2017,C&M-PMS Prem Rates,PRC DELEGATED CO-COMMISSIONING,RICHMOND MEDICAL CENTRE,18351790,"1,139.00"
Department of Health,NHS Sheffield CCG,31/08/2017,C&M-PMS QOF Aspiration,PRC DELEGATED CO-COMMISSIONING,RICHMOND MEDICAL CENTRE,18351790,"7,754.77"
Department of Health,NHS Sheffield CCG,31/08/2017,Cont Care-Physical Disab (<65),CHC ADULT FULLY FUNDED,ROSEBERRY CARE CENTRES,18454163,"33,070.13"
Department of Health,NHS Sheffield CCG,31/08/2017,Cont Care-Funded Nursing Care Allow,FUNDED NURSING CARE,ROSEBERRY CARE CENTRES,18454245,"39,810.20"
Department of Health,NHS Sheffield CCG,31/08/2017,Cont Care-Funded Nursing Care Allow,FUNDED NURSING CARE,ROSEBERRY CARE CENTRES,18454324,"26,092.70"
Department of Health,NHS Sheffield CCG,31/08/2017,Hcare Srv Rec Fdtn Trust-Contract Baseline,ACUTE COMMISSIONING,ROTHERHAM NHS FOUNDATION TRUST,18320806,"429,401.00"
Department of Health,NHS Sheffield CCG,31/08/2017,C&M-PMS Contract Value,PRC DELEGATED CO-COMMISSIONING,RUSTLINGS ROAD MEDICAL CENTRE,18351792,"26,711.75"
Department of Health,NHS Sheffield CCG,31/08/2017,C&M-PMS DES Learn Dsblty Hlth Chk,PRC DELEGATED CO-COMMISSIONING,RUSTLINGS ROAD MEDICAL CENTRE,18351792,140
Department of Health,NHS Sheffield CCG,31/08/2017,C&M-PMS Funding Differential Review,PRC DELEGATED CO-COMMISSIONING,RUSTLINGS ROAD MEDICAL CENTRE,18351792,"1,235.92"
Department of Health,NHS Sheffield CCG,31/08/2017,C&M-PMS Out of Hours Opt Outs,PRC DELEGATED CO-COMMISSIONING,RUSTLINGS ROAD MEDICAL CENTRE,18351792,7.76
Department of Health,NHS Sheffield CCG,31/08/2017,C&M-PMS PCO Other,PRC DELEGATED CO-COMMISSIONING,RUSTLINGS ROAD MEDICAL CENTRE,18351792,384.5
Department of Health,NHS Sheffield CCG,31/08/2017,C&M-PMS Prem Notional Rent,PRC DELEGATED CO-COMMISSIONING,RUSTLINGS ROAD MEDICAL CENTRE,18351792,"1,167.92"
Department of Health,NHS Sheffield CCG,31/08/2017,C&M-PMS QOF Aspiration,PRC DELEGATED CO-COMMISSIONING,RUSTLINGS ROAD MEDICAL CENTRE,18351792,"2,481.56"
Department of Health,NHS Sheffield CCG,31/08/2017,Cont Care-Funded Nursing Care Allow,FUNDED NURSING CARE,SCARSDALE GRANGE NURSING HOME,18454318,"29,988.79"
Department of Health,NHS Sheffield CCG,31/08/2017,C&M-PMS Contract Value,PRC DELEGATED CO-COMMISSIONING,SELBORNE ROAD MEDICAL CENTRE,18375254,"18,944.49"
Department of Health,NHS Sheffield CCG,31/08/2017,C&M-PMS DES Learn Dsblty Hlth Chk,PRC DELEGATED CO-COMMISSIONING,SELBORNE ROAD MEDICAL CENTRE,18375254,280
Department of Health,NHS Sheffield CCG,31/08/2017,C&M-PMS DES Minor Surgery,PRC DELEGATED CO-COMMISSIONING,SELBORNE ROAD MEDICAL CENTRE,18375254,170
Department of Health,NHS Sheffield CCG,31/08/2017,C&M-PMS Funding Differential Review,PRC DELEGATED CO-COMMISSIONING,SELBORNE ROAD MEDICAL CENTRE,18375254,631.58
Department of Health,NHS Sheffield CCG,31/08/2017,C&M-PMS Out of Hours Opt Outs,PRC DELEGATED CO-COMMISSIONING,SELBORNE ROAD MEDICAL CENTRE,18375254,1.77
Department of Health,NHS Sheffield CCG,31/08/2017,C&M-PMS PCO Other,PRC DELEGATED CO-COMMISSIONING,SELBORNE ROAD MEDICAL CENTRE,18375254,384.5
Department of Health,NHS Sheffield CCG,31/08/2017,C&M-PMS Prem Notional Rent,PRC DELEGATED CO-COMMISSIONING,SELBORNE ROAD MEDICAL CENTRE,18375254,"1,677.08"
Department of Health,NHS Sheffield CCG,31/08/2017,C&M-PMS Prem Rates,PRC DELEGATED CO-COMMISSIONING,SELBORNE ROAD MEDICAL CENTRE,18375254,515
Department of Health,NHS Sheffield CCG,31/08/2017,C&M-PMS QOF Aspiration,PRC DELEGATED CO-COMMISSIONING,SELBORNE ROAD MEDICAL CENTRE,18375254,"2,351.67"
Department of Health,NHS Sheffield CCG,31/08/2017,Cont Care-Physical Disab (<65),CHC ADULT FULLY FUNDED,SEVEN HILLS NURSING HOME,18340205,"38,962.94"
Department of Health,NHS Sheffield CCG,31/08/2017,C&M-GMS Cost of Drugs -Prescribing,LOCAL ENHANCED SERVICES,SHARROW LANE MEDICAL CENTRE,18575261,"1,443.37"
Department of Health,NHS Sheffield CCG,31/08/2017,C&M-GMS DES Minor Surgery,PRC DELEGATED CO-COMMISSIONING,SHARROW LANE MEDICAL CENTRE,18575261,400
Department of Health,NHS Sheffield CCG,31/08/2017,C&M-GMS Global Sum,PRC DELEGATED CO-COMMISSIONING,SHARROW LANE MEDICAL CENTRE,18575261,"21,737.40"
Department of Health,NHS Sheffield CCG,31/08/2017,C&M-GMS MPIG Correction Factor,PRC DELEGATED CO-COMMISSIONING,SHARROW LANE MEDICAL CENTRE,18575261,"2,940.48"
Department of Health,NHS Sheffield CCG,31/08/2017,C&M-GMS PCO Other,PRC DELEGATED CO-COMMISSIONING,SHARROW LANE MEDICAL CENTRE,18575261,"1,922.50"
Department of Health,NHS Sheffield CCG,31/08/2017,C&M-GMS Prem Notional Rent,PRC DELEGATED CO-COMMISSIONING,SHARROW LANE MEDICAL CENTRE,18575261,"2,658.33"
Department of Health,NHS Sheffield CCG,31/08/2017,C&M-GMS Prem Rates,PRC DELEGATED CO-COMMISSIONING,SHARROW LANE MEDICAL CENTRE,18575261,467
Department of Health,NHS Sheffield CCG,31/08/2017,C&M-GMS Prof Fees Prescribing,PRC DELEGATED CO-COMMISSIONING,SHARROW LANE MEDICAL CENTRE,18575261,201.32
Department of Health,NHS Sheffield CCG,31/08/2017,C&M-GMS QOF Aspiration,PRC DELEGATED CO-COMMISSIONING,SHARROW LANE MEDICAL CENTRE,18575261,"2,727.76"
Department of Health,NHS Sheffield CCG,31/08/2017,Hcare Srv Rec Fdtn Trust-Contract Baseline,ACUTE CHILDRENS SERVICES,SHEFFIELD CHILDRENS NHS FOUNDATION TRUST,18253689,"4,535.97"
Department of Health,NHS Sheffield CCG,31/08/2017,Hcare Srv Rec Fdtn Trust-Contract Baseline,PLANNED CARE,SHEFFIELD CHILDRENS NHS FOUNDATION TRUST,18253689,"20,706.00"
Department of Health,NHS Sheffield CCG,31/08/2017,Hcare Srv Rec Fdtn Trust-Contract Baseline,URGENT CARE,SHEFFIELD CHILDRENS NHS FOUNDATION TRUST,18253689,"2,332.00"
Department of Health,NHS Sheffield CCG,31/08/2017,Hcare Srv Rec Fdtn Trust-Non Contract,ACUTE CHILDRENS SERVICES,SHEFFIELD CHILDRENS NHS FOUNDATION TRUST,18253689,690
Department of Health,NHS Sheffield CCG,31/08/2017,Hcare Srv Rec Fdtn Trust-CQUIN,ACUTE CHILDRENS SERVICES,SHEFFIELD CHILDRENS NHS FOUNDATION TRUST,18296518,"32,706.00"
Department of Health,NHS Sheffield CCG,31/08/2017,Hcare Srv Rec Fdtn Trust-CQUIN,COMMUNITY SERVICES,SHEFFIELD CHILDRENS NHS FOUNDATION TRUST,18296518,"3,728.00"
Department of Health,NHS Sheffield CCG,31/08/2017,Hcare Srv Rec Fdtn Trust-Contract Baseline,ACUTE CHILDRENS SERVICES,SHEFFIELD CHILDRENS NHS FOUNDATION TRUST,18296518,"235,977.00"
Department of Health,NHS Sheffield CCG,31/08/2017,Hcare Srv Rec Fdtn Trust-Contract Baseline,CHILD AND ADOLESCENT MENTAL HEALTH,SHEFFIELD CHILDRENS NHS FOUNDATION TRUST,18296518,"367,086.00"
Department of Health,NHS Sheffield CCG,31/08/2017,Hcare Srv Rec Fdtn Trust-Contract Baseline,COMMUNITY SERVICES,SHEFFIELD CHILDRENS NHS FOUNDATION TRUST,18296518,"298,241.00"
Department of Health,NHS Sheffield CCG,31/08/2017,Hcare Srv Rec Fdtn Trust-Contract Baseline,HIGH COST DRUGS,SHEFFIELD CHILDRENS NHS FOUNDATION TRUST,18296518,"40,649.00"
Department of Health,NHS Sheffield CCG,31/08/2017,Hcare Srv Rec Fdtn Trust-Contract Baseline,MENTAL HEALTH CONTRACTS,SHEFFIELD CHILDRENS NHS FOUNDATION TRUST,18296518,"5,277.00"
Department of Health,NHS Sheffield CCG,31/08/2017,Hcare Srv Rec Fdtn Trust-Contract Baseline,PLANNED CARE,SHEFFIELD CHILDRENS NHS FOUNDATION TRUST,18296518,"965,735.00"
Department of Health,NHS Sheffield CCG,31/08/2017,Hcare Srv Rec Fdtn Trust-Contract Baseline,SAFEGUARDING,SHEFFIELD CHILDRENS NHS FOUNDATION TRUST,18296518,"29,800.00"
Department of Health,NHS Sheffield CCG,31/08/2017,Hcare Srv Rec Fdtn Trust-Contract Baseline,URGENT CARE,SHEFFIELD CHILDRENS NHS FOUNDATION TRUST,18296518,"988,358.00"
Department of Health,NHS Sheffield CCG,31/08/2017,Clinical&Medical-Othe Public Sector,COMMUNITY SERVICES,SHEFFIELD CITY COUNCIL,18380504,"21,831.00"
Department of Health,NHS Sheffield CCG,31/08/2017,Clinical&Medical-Othe Public Sector,MENTAL HEALTH SERVICES - COLLABORATIVE COMMISSIONING,SHEFFIELD CITY COUNCIL,18380504,"16,919.00"
Department of Health,NHS Sheffield CCG,31/08/2017,Clinical&Medical-Othe Public Sector,REABLEMENT,SHEFFIELD CITY COUNCIL,18380504,"160,417.00"
Department of Health,NHS Sheffield CCG,31/08/2017,Clinical&Medical-Othe Public Sector,SAFEGUARDING,SHEFFIELD CITY COUNCIL,18380504,"15,324.00"
Department of Health,NHS Sheffield CCG,31/08/2017,Soc Care-Joint H&C Teams/Working,INTERMEDIATE CARE,SHEFFIELD CITY COUNCIL,18380504,"88,060.00"
Department of Health,NHS Sheffield CCG,31/08/2017,Soc Care-Learn Disab Servs,LEARNING DIFFICULTIES,SHEFFIELD CITY COUNCIL,18380504,"166,667.00"
Department of Health,NHS Sheffield CCG,31/08/2017,Soc Care-Other Soc Care,COMMUNITY SERVICES,SHEFFIELD CITY COUNCIL,18380504,"1,467,750.00"
Department of Health,NHS Sheffield CCG,31/08/2017,Soc Care-Re-ablement services,REABLEMENT,SHEFFIELD CITY COUNCIL,18380504,"63,387.00"
Department of Health,NHS Sheffield CCG,31/08/2017,Soc Care-Support Prim Care,COMMUNITY SERVICES,SHEFFIELD CITY COUNCIL,18380504,"108,336.00"
Department of Health,NHS Sheffield CCG,31/08/2017,Cont Care-Physical Disab (65+),CHC ADULT FULLY FUNDED,SHEFFIELD CITY COUNCIL,18579783,"835,985.63"
Department of Health,NHS Sheffield CCG,31/08/2017,C&M-APMS Contract Value,PRC DELEGATED CO-COMMISSIONING,SHEFFIELD HEALTH & SOCIAL CARE NHS FOUNDATION TRUST,18356404,"119,551.04"
Department of Health,NHS Sheffield CCG,31/08/2017,C&M-APMS OOH Opt Outs,PRC DELEGATED CO-COMMISSIONING,SHEFFIELD HEALTH & SOCIAL CARE NHS FOUNDATION TRUST,18356404,25.66
Department of Health,NHS Sheffield CCG,31/08/2017,C&M-APMS Prem Actual Rent,PRC DELEGATED CO-COMMISSIONING,SHEFFIELD HEALTH & SOCIAL CARE NHS FOUNDATION TRUST,18356404,"5,169.68"
Department of Health,NHS Sheffield CCG,31/08/2017,C&M-APMS Prem Healthcentre Rent,PRC DELEGATED CO-COMMISSIONING,SHEFFIELD HEALTH & SOCIAL CARE NHS FOUNDATION TRUST,18356404,"58,273.13"
Department of Health,NHS Sheffield CCG,31/08/2017,C&M-APMS Prem Notional Rent,PRC DELEGATED CO-COMMISSIONING,SHEFFIELD HEALTH & SOCIAL CARE NHS FOUNDATION TRUST,18356404,"2,804.17"
Department of Health,NHS Sheffield CCG,31/08/2017,C&M-PMS DES Minor Surgery,PRC DELEGATED CO-COMMISSIONING,SHEFFIELD HEALTH & SOCIAL CARE NHS FOUNDATION TRUST,18356404,760
Department of Health,NHS Sheffield CCG,31/08/2017,C&M-PMS QOF Aspiration,PRC DELEGATED CO-COMMISSIONING,SHEFFIELD HEALTH & SOCIAL CARE NHS FOUNDATION TRUST,18356404,"12,657.74"
Department of Health,NHS Sheffield CCG,31/08/2017,C&M-APMS Contract Value,PRC DELEGATED CO-COMMISSIONING,SHEFFIELD HEALTH & SOCIAL CARE NHS FOUNDATION TRUST,18356406,"26,563.38"
Department of Health,NHS Sheffield CCG,31/08/2017,C&M-APMS OOH Opt Outs,PRC DELEGATED CO-COMMISSIONING,SHEFFIELD HEALTH & SOCIAL CARE NHS FOUNDATION TRUST,18356406,1.1
Department of Health,NHS Sheffield CCG,31/08/2017,C&M-PMS DES Minor Surgery,PRC DELEGATED CO-COMMISSIONING,SHEFFIELD HEALTH & SOCIAL CARE NHS FOUNDATION TRUST,18356406,40
Department of Health,NHS Sheffield CCG,31/08/2017,C&M-PMS QOF Aspiration,PRC DELEGATED CO-COMMISSIONING,SHEFFIELD HEALTH & SOCIAL CARE NHS FOUNDATION TRUST,18356406,"1,256.00"
Department of Health,NHS Sheffield CCG,31/08/2017,Hcare Srv Rec Fdtn Trust-Contract Baseline,MENTAL HEALTH CONTRACTS,SHEFFIELD HEALTH & SOCIAL CARE NHS FOUNDATION TRUST,18429834,"6,013,427.33"
Department of Health,NHS Sheffield CCG,31/08/2017,Cont Care-Foundation Trust,CHC ADULT FULLY FUNDED,SHEFFIELD HEALTH & SOCIAL CARE NHS FOUNDATION TRUST,18430030,"236,256.12"
Department of Health,NHS Sheffield CCG,31/08/2017,Hcare Srv Rec Fdtn Trust-Contract Baseline,MENTAL HEALTH CONTRACTS,SHEFFIELD HEALTH & SOCIAL CARE NHS FOUNDATION TRUST,18430033,"43,493.80"
Department of Health,NHS Sheffield CCG,31/08/2017,Hcare Srv Rec Fdtn Trust-Contract Baseline,ACUTE COMMISSIONING,SHEFFIELD TEACHING HOSPITALS NHS FOUNDATION TRUST,18267637,"316,657.00"
Department of Health,NHS Sheffield CCG,31/08/2017,Hcare Srv Rec Fdtn Trust-Contract Baseline,ACUTE COMMISSIONING,SHEFFIELD TEACHING HOSPITALS NHS FOUNDATION TRUST,18267640,"5,530,667.00"
Department of Health,NHS Sheffield CCG,31/08/2017,Hcare Srv Rec Fdtn Trust-Contract Baseline,ACUTE COMMISSIONING,SHEFFIELD TEACHING HOSPITALS NHS FOUNDATION TRUST,18267643,"26,312,875.00"
Department of Health,NHS Sheffield CCG,31/08/2017,Hcare Srv Rec Fdtn Trust-Contract Baseline,ACUTE COMMISSIONING,SHEFFIELD TEACHING HOSPITALS NHS FOUNDATION TRUST,18267647,"1,101,688.00"
Department of Health,NHS Sheffield CCG,31/08/2017,Contract & Agency-Agency Int Mgr,BEREAVEMENT SERVICE,SHEFFIELD TEACHING HOSPITALS NHS FOUNDATION TRUST,18579789,"44,400.00"
Department of Health,NHS Sheffield CCG,31/08/2017,Hcare Srv Rec Fdtn Trust-Contract Baseline,ACUTE COMMISSIONING,SHEFFIELD TEACHING HOSPITALS NHS FOUNDATION TRUST,18606756,"396,567.00"
Department of Health,NHS Sheffield CCG,31/08/2017,Hcare Srv Rec Fdtn Trust-Contract Baseline,ACUTE COMMISSIONING,SHEFFIELD TEACHING HOSPITALS NHS FOUNDATION TRUST,18606760,"5,876,463.00"
Department of Health,NHS Sheffield CCG,31/08/2017,C&M-GMS DES Learn Dsblty Hlth Chk,PRC DELEGATED CO-COMMISSIONING,SHIREGREEN MEDICAL CENTRE,18558364,"1,324.00"
Department of Health,NHS Sheffield CCG,31/08/2017,C&M-GMS DES Minor Surgery,PRC DELEGATED CO-COMMISSIONING,SHIREGREEN MEDICAL CENTRE,18558364,"1,695.00"
Department of Health,NHS Sheffield CCG,31/08/2017,C&M-GMS Global Sum,PRC DELEGATED CO-COMMISSIONING,SHIREGREEN MEDICAL CENTRE,18558364,"55,473.08"
Department of Health,NHS Sheffield CCG,31/08/2017,C&M-GMS MPIG Correction Factor,PRC DELEGATED CO-COMMISSIONING,SHIREGREEN MEDICAL CENTRE,18558364,680.53
Department of Health,NHS Sheffield CCG,31/08/2017,C&M-GMS PCO Other,PRC DELEGATED CO-COMMISSIONING,SHIREGREEN MEDICAL CENTRE,18558364,452.6
Department of Health,NHS Sheffield CCG,31/08/2017,C&M-GMS Prem Cost Rent,PRC DELEGATED CO-COMMISSIONING,SHIREGREEN MEDICAL CENTRE,18558364,"1,792.33"
Department of Health,NHS Sheffield CCG,31/08/2017,C&M-GMS Prem Notional Rent,PRC DELEGATED CO-COMMISSIONING,SHIREGREEN MEDICAL CENTRE,18558364,"5,375.00"
Department of Health,NHS Sheffield CCG,31/08/2017,C&M-GMS Prem Rates,PRC DELEGATED CO-COMMISSIONING,SHIREGREEN MEDICAL CENTRE,18558364,"1,877.00"
Department of Health,NHS Sheffield CCG,31/08/2017,C&M-GMS QOF Aspiration,PRC DELEGATED CO-COMMISSIONING,SHIREGREEN MEDICAL CENTRE,18558364,"6,614.14"
Department of Health,NHS Sheffield CCG,31/08/2017,C&M-PMS Contract Value,PRC DELEGATED CO-COMMISSIONING,SLOAN MEDICAL CENTRE,18351794,"89,648.19"
Department of Health,NHS Sheffield CCG,31/08/2017,C&M-PMS DES Minor Surgery,PRC DELEGATED CO-COMMISSIONING,SLOAN MEDICAL CENTRE,18351794,"2,665.00"
Department of Health,NHS Sheffield CCG,31/08/2017,C&M-PMS Funding Differential Review,PRC DELEGATED CO-COMMISSIONING,SLOAN MEDICAL CENTRE,18351794,165.33
Department of Health,NHS Sheffield CCG,31/08/2017,C&M-PMS Out of Hours Opt Outs,PRC DELEGATED CO-COMMISSIONING,SLOAN MEDICAL CENTRE,18351794,18.61
Department of Health,NHS Sheffield CCG,31/08/2017,C&M-PMS PCO Other,PRC DELEGATED CO-COMMISSIONING,SLOAN MEDICAL CENTRE,18351794,523.7
Department of Health,NHS Sheffield CCG,31/08/2017,C&M-PMS Prem Actual Rent,PRC DELEGATED CO-COMMISSIONING,SLOAN MEDICAL CENTRE,18351794,"15,535.83"
Department of Health,NHS Sheffield CCG,31/08/2017,C&M-PMS Prem Notional Rent,PRC DELEGATED CO-COMMISSIONING,SLOAN MEDICAL CENTRE,18351794,608.33
Department of Health,NHS Sheffield CCG,31/08/2017,C&M-PMS Prem Rates,PRC DELEGATED CO-COMMISSIONING,SLOAN MEDICAL CENTRE,18351794,"2,990.00"
Department of Health,NHS Sheffield CCG,31/08/2017,C&M-PMS Prem Water Rates,PRC DELEGATED CO-COMMISSIONING,SLOAN MEDICAL CENTRE,18351794,340.22
Department of Health,NHS Sheffield CCG,31/08/2017,C&M-PMS QOF Aspiration,PRC DELEGATED CO-COMMISSIONING,SLOAN MEDICAL CENTRE,18351794,"10,663.96"
Department of Health,NHS Sheffield CCG,31/08/2017,C&M-PMS Contract Value,PRC DELEGATED CO-COMMISSIONING,SOTHALL MEDICAL CENTRE,18351796,"68,917.89"
Department of Health,NHS Sheffield CCG,31/08/2017,C&M-PMS DES Minor Surgery,PRC DELEGATED CO-COMMISSIONING,SOTHALL MEDICAL CENTRE,18351796,610
Department of Health,NHS Sheffield CCG,31/08/2017,C&M-PMS Funding Differential Review,PRC DELEGATED CO-COMMISSIONING,SOTHALL MEDICAL CENTRE,18351796,"3,463.83"
Department of Health,NHS Sheffield CCG,31/08/2017,C&M-PMS Out of Hours Opt Outs,PRC DELEGATED CO-COMMISSIONING,SOTHALL MEDICAL CENTRE,18351796,13
Department of Health,NHS Sheffield CCG,31/08/2017,C&M-PMS PCO Other,PRC DELEGATED CO-COMMISSIONING,SOTHALL MEDICAL CENTRE,18351796,523.7
Department of Health,NHS Sheffield CCG,31/08/2017,C&M-PMS Prem Healthcentre Rent,PRC DELEGATED CO-COMMISSIONING,SOTHALL MEDICAL CENTRE,18351796,"6,855.67"
Department of Health,NHS Sheffield CCG,31/08/2017,C&M-PMS Prem Notional Rent,PRC DELEGATED CO-COMMISSIONING,SOTHALL MEDICAL CENTRE,18351796,"5,116.67"
Department of Health,NHS Sheffield CCG,31/08/2017,C&M-PMS Prem Rates,PRC DELEGATED CO-COMMISSIONING,SOTHALL MEDICAL CENTRE,18351796,"1,000.00"
Department of Health,NHS Sheffield CCG,31/08/2017,C&M-PMS QOF Aspiration,PRC DELEGATED CO-COMMISSIONING,SOTHALL MEDICAL CENTRE,18351796,"8,821.42"
Department of Health,NHS Sheffield CCG,31/08/2017,Cont Care- Adult 100% Fully Funded,CHC ADULT FULLY FUNDED,SOUTH YORKSHIRE HOUSING ASSOCIATION LTD,18296608,"103,949.00"
Department of Health,NHS Sheffield CCG,31/08/2017,Cont Care- Adult 100% Fully Funded,CHC ADULT FULLY FUNDED,SOUTH YORKSHIRE HOUSING ASSOCIATION LTD,18340034,"25,500.00"
Department of Health,NHS Sheffield CCG,31/08/2017,Cont Care-Physical Disab (<65),CHC ADULT FULLY FUNDED,SOUTH YORKSHIRE HOUSING ASSOCIATION LTD,18340406,"89,587.00"
Department of Health,NHS Sheffield CCG,31/08/2017,Clinical&Medical-Independent Sector,MENTAL HEALTH CONTRACTS,SOUTH YORKSHIRE HOUSING ASSOCIATION LTD,18380240,"34,435.00"
Department of Health,NHS Sheffield CCG,31/08/2017,C&M-PMS Contract Value,PRC DELEGATED CO-COMMISSIONING,SOUTHEY GREEN MEDICAL CENTRE,18351798,"24,861.05"
Department of Health,NHS Sheffield CCG,31/08/2017,C&M-PMS Funding Differential Review,PRC DELEGATED CO-COMMISSIONING,SOUTHEY GREEN MEDICAL CENTRE,18351798,127.58
Department of Health,NHS Sheffield CCG,31/08/2017,C&M-PMS Prem Notional Rent,PRC DELEGATED CO-COMMISSIONING,SOUTHEY GREEN MEDICAL CENTRE,18351798,"3,362.50"
Department of Health,NHS Sheffield CCG,31/08/2017,C&M-PMS QOF Aspiration,PRC DELEGATED CO-COMMISSIONING,SOUTHEY GREEN MEDICAL CENTRE,18351798,"2,875.40"
Department of Health,NHS Sheffield CCG,31/08/2017,C&M-GMS DES Minor Surgery,PRC DELEGATED CO-COMMISSIONING,STANNINGTON MEDICAL CENTRE,18558368,160
Department of Health,NHS Sheffield CCG,31/08/2017,C&M-GMS Global Sum,PRC DELEGATED CO-COMMISSIONING,STANNINGTON MEDICAL CENTRE,18558368,"22,713.77"
Department of Health,NHS Sheffield CCG,31/08/2017,C&M-GMS PCO Other,PRC DELEGATED CO-COMMISSIONING,STANNINGTON MEDICAL CENTRE,18558368,384.5
Department of Health,NHS Sheffield CCG,31/08/2017,C&M-GMS Prem Notional Rent,PRC DELEGATED CO-COMMISSIONING,STANNINGTON MEDICAL CENTRE,18558368,"2,533.33"
Department of Health,NHS Sheffield CCG,31/08/2017,C&M-GMS Prem Rates,PRC DELEGATED CO-COMMISSIONING,STANNINGTON MEDICAL CENTRE,18558368,482
Department of Health,NHS Sheffield CCG,31/08/2017,C&M-GMS QOF Aspiration,PRC DELEGATED CO-COMMISSIONING,STANNINGTON MEDICAL CENTRE,18558368,"3,253.08"
Department of Health,NHS Sheffield CCG,31/08/2017,C&M-GMS Cost of Drugs -Prescribing,LOCAL ENHANCED SERVICES,STONECROFT MEDICAL CENTRE,18558366,"1,892.27"
Department of Health,NHS Sheffield CCG,31/08/2017,C&M-GMS DES Minor Surgery,PRC DELEGATED CO-COMMISSIONING,STONECROFT MEDICAL CENTRE,18558366,"1,600.00"
Department of Health,NHS Sheffield CCG,31/08/2017,C&M-GMS Global Sum,PRC DELEGATED CO-COMMISSIONING,STONECROFT MEDICAL CENTRE,18558366,"29,844.25"
Department of Health,NHS Sheffield CCG,31/08/2017,C&M-GMS MPIG Correction Factor,PRC DELEGATED CO-COMMISSIONING,STONECROFT MEDICAL CENTRE,18558366,927.38
Department of Health,NHS Sheffield CCG,31/08/2017,C&M-GMS PCO Other,PRC DELEGATED CO-COMMISSIONING,STONECROFT MEDICAL CENTRE,18558366,384.5
Department of Health,NHS Sheffield CCG,31/08/2017,C&M-GMS Prem Notional Rent,PRC DELEGATED CO-COMMISSIONING,STONECROFT MEDICAL CENTRE,18558366,"2,808.33"
Department of Health,NHS Sheffield CCG,31/08/2017,C&M-GMS Prem Rates,PRC DELEGATED CO-COMMISSIONING,STONECROFT MEDICAL CENTRE,18558366,"1,083.00"
Department of Health,NHS Sheffield CCG,31/08/2017,C&M-GMS Prof Fees Prescribing,PRC DELEGATED CO-COMMISSIONING,STONECROFT MEDICAL CENTRE,18558366,104.13
Department of Health,NHS Sheffield CCG,31/08/2017,C&M-GMS QOF Aspiration,PRC DELEGATED CO-COMMISSIONING,STONECROFT MEDICAL CENTRE,18558366,"4,224.91"
Department of Health,NHS Sheffield CCG,31/08/2017,Clinical&Medical-Independent Sector,MENTAL HEALTH CONTRACTS,SUSASH GB LTD T/A EAGLE HOUSE,18380258,"30,092.00"
Department of Health,NHS Sheffield CCG,31/08/2017,C&M-GMS Cost of Drugs -Prescribing,LOCAL ENHANCED SERVICES,TOTLEY RISE MEDICAL CENTRE,18558370,357.04
Department of Health,NHS Sheffield CCG,31/08/2017,C&M-GMS DES Minor Surgery,PRC DELEGATED CO-COMMISSIONING,TOTLEY RISE MEDICAL CENTRE,18558370,80
Department of Health,NHS Sheffield CCG,31/08/2017,C&M-GMS Global Sum,PRC DELEGATED CO-COMMISSIONING,TOTLEY RISE MEDICAL CENTRE,18558370,"21,982.63"
Department of Health,NHS Sheffield CCG,31/08/2017,C&M-GMS MPIG Correction Factor,PRC DELEGATED CO-COMMISSIONING,TOTLEY RISE MEDICAL CENTRE,18558370,154.7
Department of Health,NHS Sheffield CCG,31/08/2017,C&M-GMS PCO Locum Adop/Pat/Mat,PRC DELEGATED CO-COMMISSIONING,TOTLEY RISE MEDICAL CENTRE,18558370,"5,104.16"
Department of Health,NHS Sheffield CCG,31/08/2017,C&M-GMS PCO Other,PRC DELEGATED CO-COMMISSIONING,TOTLEY RISE MEDICAL CENTRE,18558370,384.5
Department of Health,NHS Sheffield CCG,31/08/2017,C&M-GMS Prem Notional Rent,PRC DELEGATED CO-COMMISSIONING,TOTLEY RISE MEDICAL CENTRE,18558370,"1,491.67"
Department of Health,NHS Sheffield CCG,31/08/2017,C&M-GMS Prem Rates,PRC DELEGATED CO-COMMISSIONING,TOTLEY RISE MEDICAL CENTRE,18558370,136
Department of Health,NHS Sheffield CCG,31/08/2017,C&M-GMS Prem Water Rates,PRC DELEGATED CO-COMMISSIONING,TOTLEY RISE MEDICAL CENTRE,18558370,112.91
Department of Health,NHS Sheffield CCG,31/08/2017,C&M-GMS Prof Fees Prescribing,PRC DELEGATED CO-COMMISSIONING,TOTLEY RISE MEDICAL CENTRE,18558370,64.79
Department of Health,NHS Sheffield CCG,31/08/2017,C&M-GMS QOF Aspiration,PRC DELEGATED CO-COMMISSIONING,TOTLEY RISE MEDICAL CENTRE,18558370,"2,269.92"
Department of Health,NHS Sheffield CCG,31/08/2017,C&M-GMS Cost of Drugs -Prescribing,LOCAL ENHANCED SERVICES,TRAMWAYS MEDICAL CENTRE,18558372,"2,351.00"
Department of Health,NHS Sheffield CCG,31/08/2017,C&M-GMS DES Learn Dsblty Hlth Chk,PRC DELEGATED CO-COMMISSIONING,TRAMWAYS MEDICAL CENTRE,18558372,140
Department of Health,NHS Sheffield CCG,31/08/2017,C&M-GMS DES Minor Surgery,PRC DELEGATED CO-COMMISSIONING,TRAMWAYS MEDICAL CENTRE,18558372,"8,270.00"
Department of Health,NHS Sheffield CCG,31/08/2017,C&M-GMS Global Sum,PRC DELEGATED CO-COMMISSIONING,TRAMWAYS MEDICAL CENTRE,18558372,"58,565.01"
Department of Health,NHS Sheffield CCG,31/08/2017,C&M-GMS PCO Other,PRC DELEGATED CO-COMMISSIONING,TRAMWAYS MEDICAL CENTRE,18558372,452.6
Department of Health,NHS Sheffield CCG,31/08/2017,C&M-GMS Prem Cost Rent,PRC DELEGATED CO-COMMISSIONING,TRAMWAYS MEDICAL CENTRE,18558372,"4,012.75"
Department of Health,NHS Sheffield CCG,31/08/2017,C&M-GMS Prem Rates,PRC DELEGATED CO-COMMISSIONING,TRAMWAYS MEDICAL CENTRE,18558372,889
Department of Health,NHS Sheffield CCG,31/08/2017,C&M-GMS Prof Fees Prescribing,PRC DELEGATED CO-COMMISSIONING,TRAMWAYS MEDICAL CENTRE,18558372,233.71
Department of Health,NHS Sheffield CCG,31/08/2017,C&M-GMS QOF Aspiration,PRC DELEGATED CO-COMMISSIONING,TRAMWAYS MEDICAL CENTRE,18558372,"6,336.58"
Department of Health,NHS Sheffield CCG,31/08/2017,Cont Care-Funded Nursing Care Allow,FUNDED NURSING CARE,ULTIMA CARE CENTRES (NO1) LTD,18454155,"37,657.70"
Department of Health,NHS Sheffield CCG,31/08/2017,C&M-PMS Contract Value,PRC DELEGATED CO-COMMISSIONING,UNIVERSITY HEALTH SERVICE,18351802,"142,358.88"
Department of Health,NHS Sheffield CCG,31/08/2017,C&M-PMS DES Minor Surgery,PRC DELEGATED CO-COMMISSIONING,UNIVERSITY HEALTH SERVICE,18351802,"1,700.00"
Department of Health,NHS Sheffield CCG,31/08/2017,C&M-PMS Out of Hours Opt Outs,PRC DELEGATED CO-COMMISSIONING,UNIVERSITY HEALTH SERVICE,18351802,249.87
Department of Health,NHS Sheffield CCG,31/08/2017,C&M-PMS Prem Notional Rent,PRC DELEGATED CO-COMMISSIONING,UNIVERSITY HEALTH SERVICE,18351802,"15,833.33"
Department of Health,NHS Sheffield CCG,31/08/2017,C&M-PMS QOF Aspiration,PRC DELEGATED CO-COMMISSIONING,UNIVERSITY HEALTH SERVICE,18351802,"3,640.26"
Department of Health,NHS Sheffield CCG,31/08/2017,C&M-GMS Cost of Drugs -Prescribing,LOCAL ENHANCED SERVICES,UPPERTHORPE MEDICAL CENTRE,18558375,"2,549.69"
Department of Health,NHS Sheffield CCG,31/08/2017,C&M-GMS DES Minor Surgery,PRC DELEGATED CO-COMMISSIONING,UPPERTHORPE MEDICAL CENTRE,18558375,890
Department of Health,NHS Sheffield CCG,31/08/2017,C&M-GMS Global Sum,PRC DELEGATED CO-COMMISSIONING,UPPERTHORPE MEDICAL CENTRE,18558375,"75,439.39"
Department of Health,NHS Sheffield CCG,31/08/2017,C&M-GMS MPIG Correction Factor,PRC DELEGATED CO-COMMISSIONING,UPPERTHORPE MEDICAL CENTRE,18558375,"1,988.60"
Department of Health,NHS Sheffield CCG,31/08/2017,C&M-GMS Prem Notional Rent,PRC DELEGATED CO-COMMISSIONING,UPPERTHORPE MEDICAL CENTRE,18558375,"2,497.83"
Department of Health,NHS Sheffield CCG,31/08/2017,C&M-GMS Prem Rates,PRC DELEGATED CO-COMMISSIONING,UPPERTHORPE MEDICAL CENTRE,18558375,"2,044.00"
Department of Health,NHS Sheffield CCG,31/08/2017,C&M-GMS Prof Fees Prescribing,PRC DELEGATED CO-COMMISSIONING,UPPERTHORPE MEDICAL CENTRE,18558375,300.82
Department of Health,NHS Sheffield CCG,31/08/2017,C&M-GMS QOF Aspiration,PRC DELEGATED CO-COMMISSIONING,UPPERTHORPE MEDICAL CENTRE,18558375,"9,309.14"
Department of Health,NHS Sheffield CCG,31/08/2017,C&M-PMS Contract Value,PRC DELEGATED CO-COMMISSIONING,UPWELL STREET SURGERY,18351804,"37,326.83"
Department of Health,NHS Sheffield CCG,31/08/2017,C&M-PMS DES Minor Surgery,PRC DELEGATED CO-COMMISSIONING,UPWELL STREET SURGERY,18351804,"1,240.00"
Department of Health,NHS Sheffield CCG,31/08/2017,C&M-PMS Funding Differential Review,PRC DELEGATED CO-COMMISSIONING,UPWELL STREET SURGERY,18351804,"2,004.50"
Department of Health,NHS Sheffield CCG,31/08/2017,C&M-PMS Out of Hours Opt Outs,PRC DELEGATED CO-COMMISSIONING,UPWELL STREET SURGERY,18351804,1.94
Department of Health,NHS Sheffield CCG,31/08/2017,C&M-PMS PCO Other,PRC DELEGATED CO-COMMISSIONING,UPWELL STREET SURGERY,18351804,384.5
Department of Health,NHS Sheffield CCG,31/08/2017,C&M-PMS Prem Actual Rent,PRC DELEGATED CO-COMMISSIONING,UPWELL STREET SURGERY,18351804,"8,137.50"
Department of Health,NHS Sheffield CCG,31/08/2017,C&M-PMS Prem Notional Rent,PRC DELEGATED CO-COMMISSIONING,UPWELL STREET SURGERY,18351804,"8,137.50"
Department of Health,NHS Sheffield CCG,31/08/2017,C&M-PMS Prem Rates,PRC DELEGATED CO-COMMISSIONING,UPWELL STREET SURGERY,18351804,984
Department of Health,NHS Sheffield CCG,31/08/2017,C&M-PMS QOF Aspiration,PRC DELEGATED CO-COMMISSIONING,UPWELL STREET SURGERY,18351804,"4,877.64"
Department of Health,NHS Sheffield CCG,31/08/2017,C&M-PMS Contract Value,PRC DELEGATED CO-COMMISSIONING,VALLEY MEDICAL CENTRE,18351806,"74,774.73"
Department of Health,NHS Sheffield CCG,31/08/2017,C&M-PMS DES Minor Surgery,PRC DELEGATED CO-COMMISSIONING,VALLEY MEDICAL CENTRE,18351806,"2,040.00"
Department of Health,NHS Sheffield CCG,31/08/2017,C&M-PMS Funding Differential Review,PRC DELEGATED CO-COMMISSIONING,VALLEY MEDICAL CENTRE,18351806,271.17
Department of Health,NHS Sheffield CCG,31/08/2017,C&M-PMS Prem Rates,PRC DELEGATED CO-COMMISSIONING,VALLEY MEDICAL CENTRE,18351806,"1,083.00"
Department of Health,NHS Sheffield CCG,31/08/2017,C&M-PMS Prem Water Rates,PRC DELEGATED CO-COMMISSIONING,VALLEY MEDICAL CENTRE,18351806,386.46
Department of Health,NHS Sheffield CCG,31/08/2017,C&M-PMS QOF Aspiration,PRC DELEGATED CO-COMMISSIONING,VALLEY MEDICAL CENTRE,18351806,"9,125.55"
Department of Health,NHS Sheffield CCG,31/08/2017,C&M-GMS Cost of Drugs -Prescribing,LOCAL ENHANCED SERVICES,WALKLEY HOUSE MEDICAL CENTRE,18558380,"1,706.03"
Department of Health,NHS Sheffield CCG,31/08/2017,C&M-GMS DES Minor Surgery,PRC DELEGATED CO-COMMISSIONING,WALKLEY HOUSE MEDICAL CENTRE,18558380,"1,495.00"
Department of Health,NHS Sheffield CCG,31/08/2017,C&M-GMS Global Sum,PRC DELEGATED CO-COMMISSIONING,WALKLEY HOUSE MEDICAL CENTRE,18558380,"77,980.42"
Department of Health,NHS Sheffield CCG,31/08/2017,C&M-GMS Prem Notional Rent,PRC DELEGATED CO-COMMISSIONING,WALKLEY HOUSE MEDICAL CENTRE,18558380,"5,581.34"
Department of Health,NHS Sheffield CCG,31/08/2017,C&M-GMS Prof Fees Prescribing,PRC DELEGATED CO-COMMISSIONING,WALKLEY HOUSE MEDICAL CENTRE,18558380,210.57
Department of Health,NHS Sheffield CCG,31/08/2017,C&M-GMS QOF Aspiration,PRC DELEGATED CO-COMMISSIONING,WALKLEY HOUSE MEDICAL CENTRE,18558380,"8,922.54"
Department of Health,NHS Sheffield CCG,31/08/2017,C&M-GMS Cost of Drugs -Prescribing,LOCAL ENHANCED SERVICES,WHITE HOUSE SURGERY SHEFFIELD,18558378,"1,183.67"
Department of Health,NHS Sheffield CCG,31/08/2017,C&M-GMS DES Learn Dsblty Hlth Chk,PRC DELEGATED CO-COMMISSIONING,WHITE HOUSE SURGERY SHEFFIELD,18558378,420
Department of Health,NHS Sheffield CCG,31/08/2017,C&M-GMS DES Minor Surgery,PRC DELEGATED CO-COMMISSIONING,WHITE HOUSE SURGERY SHEFFIELD,18558378,320
Department of Health,NHS Sheffield CCG,31/08/2017,C&M-GMS Global Sum,PRC DELEGATED CO-COMMISSIONING,WHITE HOUSE SURGERY SHEFFIELD,18558378,"46,834.45"
Department of Health,NHS Sheffield CCG,31/08/2017,C&M-GMS MPIG Correction Factor,PRC DELEGATED CO-COMMISSIONING,WHITE HOUSE SURGERY SHEFFIELD,18558378,"2,086.94"
Department of Health,NHS Sheffield CCG,31/08/2017,C&M-GMS Prem Notional Rent,PRC DELEGATED CO-COMMISSIONING,WHITE HOUSE SURGERY SHEFFIELD,18558378,"9,104.17"
Department of Health,NHS Sheffield CCG,31/08/2017,C&M-GMS Prem Rates,PRC DELEGATED CO-COMMISSIONING,WHITE HOUSE SURGERY SHEFFIELD,18558378,"2,013.00"
Department of Health,NHS Sheffield CCG,31/08/2017,C&M-GMS Prof Fees Prescribing,PRC DELEGATED CO-COMMISSIONING,WHITE HOUSE SURGERY SHEFFIELD,18558378,205.95
Department of Health,NHS Sheffield CCG,31/08/2017,C&M-GMS QOF Aspiration,PRC DELEGATED CO-COMMISSIONING,WHITE HOUSE SURGERY SHEFFIELD,18558378,"6,083.99"
Department of Health,NHS Sheffield CCG,31/08/2017,Cont Care-Physical Disab (<65),CHC ADULT FULLY FUNDED,WILLOWBECK HEALTH CARE LTD,18340279,"159,230.22"
Department of Health,NHS Sheffield CCG,31/08/2017,C&M-PMS Contract Value,PRC DELEGATED CO-COMMISSIONING,WINCOBANK MEDICAL CENTRE,18351812,"58,705.24"
Department of Health,NHS Sheffield CCG,31/08/2017,C&M-PMS DES Minor Surgery,PRC DELEGATED CO-COMMISSIONING,WINCOBANK MEDICAL CENTRE,18351812,"1,520.00"
Department of Health,NHS Sheffield CCG,31/08/2017,C&M-PMS Funding Differential Review,PRC DELEGATED CO-COMMISSIONING,WINCOBANK MEDICAL CENTRE,18351812,9.92
Department of Health,NHS Sheffield CCG,31/08/2017,C&M-PMS Prem Healthcentre Rent,PRC DELEGATED CO-COMMISSIONING,WINCOBANK MEDICAL CENTRE,18351812,"40,840.62"
Department of Health,NHS Sheffield CCG,31/08/2017,C&M-PMS QOF Aspiration,PRC DELEGATED CO-COMMISSIONING,WINCOBANK MEDICAL CENTRE,18351812,"6,934.01"
Department of Health,NHS Sheffield CCG,31/08/2017,C&M-PMS Contract Value,PRC DELEGATED CO-COMMISSIONING,WOODHOUSE HEALTH CENTRE,18351808,"95,330.65"
Department of Health,NHS Sheffield CCG,31/08/2017,C&M-PMS DES Minor Surgery,PRC DELEGATED CO-COMMISSIONING,WOODHOUSE HEALTH CENTRE,18351808,"3,440.00"
Department of Health,NHS Sheffield CCG,31/08/2017,C&M-PMS Funding Differential Review,PRC DELEGATED CO-COMMISSIONING,WOODHOUSE HEALTH CENTRE,18351808,"2,776.33"
Department of Health,NHS Sheffield CCG,31/08/2017,C&M-PMS Out of Hours Opt Outs,PRC DELEGATED CO-COMMISSIONING,WOODHOUSE HEALTH CENTRE,18351808,13.48
Department of Health,NHS Sheffield CCG,31/08/2017,C&M-PMS Prem Notional Rent,PRC DELEGATED CO-COMMISSIONING,WOODHOUSE HEALTH CENTRE,18351808,"6,338.58"
Department of Health,NHS Sheffield CCG,31/08/2017,C&M-PMS Prem Water Rates,PRC DELEGATED CO-COMMISSIONING,WOODHOUSE HEALTH CENTRE,18351808,361.32
Department of Health,NHS Sheffield CCG,31/08/2017,C&M-PMS QOF Aspiration,PRC DELEGATED CO-COMMISSIONING,WOODHOUSE HEALTH CENTRE,18351808,"14,743.27"
Department of Health,NHS Sheffield CCG,31/08/2017,C&M-PMS Contract Value,PRC DELEGATED CO-COMMISSIONING,WOODSEATS MEDICAL CENTRE,18351810,"64,985.98"
Department of Health,NHS Sheffield CCG,31/08/2017,C&M-PMS DES Learn Dsblty Hlth Chk,PRC DELEGATED CO-COMMISSIONING,WOODSEATS MEDICAL CENTRE,18351810,560
Department of Health,NHS Sheffield CCG,31/08/2017,C&M-PMS DES Minor Surgery,PRC DELEGATED CO-COMMISSIONING,WOODSEATS MEDICAL CENTRE,18351810,"3,345.00"
Department of Health,NHS Sheffield CCG,31/08/2017,C&M-PMS Funding Differential Review,PRC DELEGATED CO-COMMISSIONING,WOODSEATS MEDICAL CENTRE,18351810,397.08
Department of Health,NHS Sheffield CCG,31/08/2017,C&M-PMS PCO Other,PRC DELEGATED CO-COMMISSIONING,WOODSEATS MEDICAL CENTRE,18351810,452.6
Department of Health,NHS Sheffield CCG,31/08/2017,C&M-PMS Prem Notional Rent,PRC DELEGATED CO-COMMISSIONING,WOODSEATS MEDICAL CENTRE,18351810,"3,578.92"
Department of Health,NHS Sheffield CCG,31/08/2017,C&M-PMS Prem Rates,PRC DELEGATED CO-COMMISSIONING,WOODSEATS MEDICAL CENTRE,18351810,"1,233.00"
Department of Health,NHS Sheffield CCG,31/08/2017,C&M-PMS QOF Aspiration,PRC DELEGATED CO-COMMISSIONING,WOODSEATS MEDICAL CENTRE,18351810,"8,124.33"
Department of Health,NHS Sheffield CCG,31/08/2017,Hcare Srv Rec NHS Trust-Contract Baseline,AMBULANCE SERVICES,YORKSHIRE AMBULANCE SERVICE NHS TRUST,18296549,"1,440,139.00"
Department of Health,NHS Sheffield CCG,31/08/2017,Hcare Srv Rec NHS Trust-Contract Baseline,NHS 111,YORKSHIRE AMBULANCE SERVICE NHS TRUST,18296550,"89,944.00"
Department of Health,NHS Sheffield CCG,31/08/2017,Hcare Srv Rec NHS Trust-Contract Baseline,AMBULANCE SERVICES,YORKSHIRE AMBULANCE SERVICE NHS TRUST,18296553,"123,979.00"
Department of Health,NHS Sheffield CCG,31/08/2017,Hcare Srv Rec NHS Trust-Contract Baseline,PATIENT TRANSPORT,YORKSHIRE AMBULANCE SERVICE NHS TRUST,18296555,"180,981.40"
Department of Health,NHS Sheffield CCG,31/08/2017,Hcare Srv Rec NHS Trust-CQUIN,AMBULANCE SERVICES,YORKSHIRE AMBULANCE SERVICE NHS TRUST,18361427,"27,566.00"
,,,,,,,"63,176,380.90"
